Service Delivery Area(T),Service Delivery Team(T),CostC,ExpenditureGroup(T),Account(T),Supplier Name(T),Trans Date, Amount 
Care & Support,Assessment & Case Management,HOBK,Supplies & Services,Respite Care,COVERAGE CARE SERVICES LTD,17/07/2012," 3,994.20 "
Care & Support,Assessment & Case Management,HOBK,Supplies & Services,Respite Care,COVERAGE CARE SERVICES LTD,17/07/2012," 4,127.34 "
Care & Support,Assessment & Case Management,HOBK,Supplies & Services,Respite Care,COVERAGE CARE SERVICES LTD,17/07/2012," 4,060.77 "
Care & Support,Assessment & Case Management,HOBK,Third Party Payments,Nursing Expenditure,COVERAGE CARE SERVICES LTD,10/07/2012,"-3,108.64 "
Care & Support,Assessment & Case Management,HOBK,Third Party Payments,Nursing Expenditure,COVERAGE CARE SERVICES LTD,10/07/2012,-762.75 
Care & Support,Assessment & Case Management,HOBK,Third Party Payments,Nursing Expenditure,COVERAGE CARE SERVICES LTD,30/07/2012," 13,861.43 "
Care & Support,Assessment & Case Management,HOBK,Third Party Payments,Nursing Expenditure,COVERAGE CARE SERVICES LTD,09/07/2012," 13,414.29 "
Care & Support,Assessment & Case Management,HOBK,Third Party Payments,Nursing Expenditure,COVERAGE CARE SERVICES LTD,09/07/2012," 13,861.43 "
Care & Support,Assessment & Case Management,HOBK,Third Party Payments,Nursing Expenditure,COVERAGE CARE SERVICES LTD,09/07/2012," 13,414.29 "
Care & Support,Assessment & Case Management,HOBK,Third Party Payments,Nursing Expenditure,COVERAGE CARE SERVICES LTD,09/07/2012," 2,806.48 "
Care & Support,Assessment & Case Management,HOBK,Third Party Payments,Nursing Expenditure,COVERAGE CARE SERVICES LTD,17/07/2012," 82,275.51 "
Care & Support,Assessment & Case Management,HOBK,Third Party Payments,Nursing Expenditure,COVERAGE CARE SERVICES LTD,17/07/2012," 86,849.91 "
Care & Support,Assessment & Case Management,HOBK,Third Party Payments,Nursing Expenditure,COVERAGE CARE SERVICES LTD,17/07/2012," 83,914.98 "
Care & Support,Assessment & Case Management,HOBR,Premises-Related Expenditure,Hygiene Services,COVERAGE CARE SERVICES LTD,16/07/2012," 50,553.13 "
Care & Support,Assessment & Case Management,HOBR,Third Party Payments,Homecare Expenditure,ACCORD HOUSING ASSOCIATION LIMITED,16/07/2012," 106,673.29 "
Care & Support,Assessment & Case Management,HOBR,Third Party Payments,Homecare Expenditure,COVERAGE CARE SERVICES LTD,16/07/2012," 51,761.89 "
Care & Support,Assessment & Case Management,HOBR,Third Party Payments,Homecare Expenditure,COVERAGE CARE SERVICES LTD,16/07/2012," 50,188.57 "
Care & Support,Assessment & Case Management,HOBR,Third Party Payments,Homecare Expenditure,COVERAGE CARE SERVICES LTD,30/07/2012," 4,390.16 "
Care & Support,Assessment & Case Management,HOBR,Third Party Payments,Homecare Expenditure,COVERAGE CARE SERVICES LTD,30/07/2012," 40,826.80 "
Care & Support,Assessment & Case Management,HOBR,Third Party Payments,Homecare Expenditure,COVERAGE CARE SERVICES LTD,09/07/2012," 5,487.70 "
Care & Support,Assessment & Case Management,HOBR,Third Party Payments,Homecare Expenditure,COVERAGE CARE SERVICES LTD,09/07/2012," 46,876.46 "
Care & Support,Assessment & Case Management,HOBT,Third Party Payments,Daycare Expenditure,BRIDGE HOUSE CARE LTD,30/07/2012," 1,165.02 "
Care & Support,Assessment & Case Management,HOBT,Third Party Payments,Daycare Expenditure,BRIDGE HOUSE CARE LTD,30/07/2012, 559.80 
Care & Support,Assessment & Case Management,HOBT,Third Party Payments,Daycare Expenditure,BRIDGE HOUSE CARE LTD,30/07/2012," 1,319.80 "
Care & Support,"Joint Commissioning - Mental Health, Learning Disbaility & Substance Misuse",HHAB,Premises-Related Expenditure,Electricity,NPOWER,11/07/2012," 2,397.77 "
Care & Support,"Joint Commissioning - Mental Health, Learning Disbaility & Substance Misuse",HJAA,Supplies & Services,Other Grants (Expenses),STAFFORDSHIRE UNIVERSITY,03/07/2012,"-9,304.99 "
Care & Support,"Joint Commissioning - Mental Health, Learning Disbaility & Substance Misuse",HJAA,Supplies & Services,Other Grants (Expenses),COMMUNITY COUNCIL OF SHROPSHIRE,02/07/2012," 13,472.16 "
Care & Support,"Joint Commissioning - Mental Health, Learning Disbaility & Substance Misuse",HJAA,Supplies & Services,Other Grants (Expenses),SHROPS PEER COUNSELLING & ADVOCACY  SERV,02/07/2012," 7,137.32 "
Care & Support,"Joint Commissioning - Mental Health, Learning Disbaility & Substance Misuse",HJAA,Supplies & Services,Other Grants (Expenses),HEADWAY SHROPSHIRE,24/07/2012," 3,013.28 "
Care & Support,"Joint Commissioning - Mental Health, Learning Disbaility & Substance Misuse",HJAA,Supplies & Services,Other Grants (Expenses),STAFFORDSHIRE UNIVERSITY,03/07/2012," 28,500.00 "
Care & Support,"Joint Commissioning - Mental Health, Learning Disbaility & Substance Misuse",HJAD,Supplies & Services,Other Grants (Expenses),D H Homecare Limited,24/07/2012, 981.10 
Care & Support,Learning Disabilities,HLAK,Supplies & Services,Other Grants (Expenses),NORTH STAFFS COMBINED HEALTHCARE,30/07/2012," 23,876.84 "
Care & Support,Learning Disabilities,HLAL,Premises-Related Expenditure,General Rents,BOURNVILLE VILLAGE TRUST,19/07/2012," 11,223.17 "
Care & Support,Learning Disabilities,HLAL,Premises-Related Expenditure,General Rents,BOURNVILLE VILLAGE TRUST,19/07/2012," 11,377.81 "
Care & Support,Learning Disabilities,HLAL,Third Party Payments,Health Funded Services,ACCORD HOUSING ASSOCIATION LIMITED,20/07/2012," 35,556.66 "
Care & Support,Learning Disabilities,HLBA,Premises-Related Expenditure,Gas,West Mercia Energy (WME),26/07/2012," 1,243.96 "
Care & Support,Learning Disabilities,HLBA,Premises-Related Expenditure,Water Rates,SEVERN TRENT WATER LTD,09/07/2012, 929.00 
Care & Support,Learning Disabilities,HLBB,Supplies & Services,Laundry & Towel Hire,PHS ALL CLEAR,02/07/2012, 581.71 
Care & Support,Learning Disabilities,HLCE,Premises-Related Expenditure,General Rents,THE WREKIN HOUSING TRUST,13/07/2012," 1,906.44 "
Care & Support,Learning Disabilities,HLCK,Supplies & Services,Respite Care,LEONARD CHESHIRE DISABILITY,30/07/2012," 23,086.23 "
Care & Support,Learning Disabilities,HLCK,Supplies & Services,Respite Care,LEONARD CHESHIRE DISABILITY,30/07/2012," 22,703.21 "
Care & Support,Learning Disabilities,HLCK,Third Party Payments,Residential Expenditure,NATIONAL FOSTERING AGENCY,13/07/2012," 5,933.71 "
Care & Support,Learning Disabilities,HLDB,Supplies & Services,Equipment - Purchase,TFM FARM & COUNTRY SUPERSTORE LTD,12/07/2012, 562.25 
Care & Support,Learning Disabilities,HLDE,Premises-Related Expenditure,General Rents,TELFORD COLLEGE OF ARTS & TECHNOLOGY,09/07/2012, 632.24 
Care & Support,Learning Disabilities,HLEB,Employees,Agency Supply Costs,THE CARE BUREAU,04/07/2012," 1,386.36 "
Care & Support,Learning Disabilities,HLEB,Premises-Related Expenditure,Water Rates,SEVERN TRENT WATER LTD,15/07/2012, 665.27 
Care & Support,Learning Disabilities,HLEC,Capital Financing Costs,Leased Equipment,LEX AUTOLEASE LTD,09/07/2012, 500.14 
Care & Support,Learning Disabilities,HLEC,Employees,Agency Supply Costs,THE CARE BUREAU,04/07/2012," 1,372.74 "
Care & Support,Learning Disabilities,HLEC,Employees,Agency Supply Costs,THE CARE BUREAU,04/07/2012," 1,205.90 "
Care & Support,Learning Disabilities,HLEC,Employees,Agency Supply Costs,THE CARE BUREAU,31/07/2012," 1,299.02 "
Care & Support,Learning Disabilities,HLEC,Premises-Related Expenditure,Electricity,West Mercia Energy (WME),02/07/2012," 2,289.39 "
Care & Support,Learning Disabilities,HLEC,Premises-Related Expenditure,Gas,West Mercia Energy (WME),02/07/2012, 612.60 
Care & Support,Learning Disabilities,HLEC,Premises-Related Expenditure,Clean Mats & Toilet Requisites,PHS GROUP LTD,19/07/2012," 1,085.50 "
Care & Support,Learning Disabilities,HLEC,Premises-Related Expenditure,Clean Mats & Toilet Requisites,PHS ALL CLEAR,02/07/2012," 1,085.50 "
Care & Support,Learning Disabilities,HLEC,Premises-Related Expenditure,Clean Mats & Toilet Requisites,PHS ALL CLEAR,31/07/2012," 1,085.50 "
Care & Support,Learning Disabilities,HLED,Premises-Related Expenditure,General Rents,BOURNVILLE VILLAGE TRUST,11/07/2012," 1,785.00 "
Care & Support,Learning Disabilities,HLEE,Premises-Related Expenditure,General Rents,BOURNVILLE VILLAGE TRUST,11/07/2012," 1,725.00 "
Care & Support,Learning Disabilities,HLEE,Supplies & Services,Telephones,BRITISH TELECOMMUNICATIONS PLC,26/07/2012, 507.28 
Care & Support,Learning Disabilities,HOAQ,Supplies & Services,Mobile Phones,ORANGE PCS LTD,06/07/2012, 870.00 
Care & Support,Learning Disabilities,HOCH,Third Party Payments,Residential Expenditure,COVERAGE CARE SERVICES LTD,17/07/2012," 5,428.92 "
Care & Support,Learning Disabilities,WHAF,Capital Expenditure,Land Purchase,DMW ENVIRONMENTAL SAFETY LTD,25/07/2012,-650.00 
Care & Support,Mental Health & Substance Misuse,HMBC,Third Party Payments,Daycare Expenditure,TELFORD MIND,13/07/2012," 10,439.36 "
Care & Support,Mental Health & Substance Misuse,HMBC,Third Party Payments,Daycare Expenditure,TELFORD MIND,13/07/2012," 10,439.36 "
Care & Support,Mental Health & Substance Misuse,HMBE,Third Party Payments,Residential Expenditure,ACCORD HOUSING ASSOCIATION LIMITED,16/07/2012," 55,787.55 "
Care & Support,Mental Health & Substance Misuse,HMBG,Supplies & Services,Other Grants (Expenses),SHROPSHIRE COUNCIL,16/07/2012," 95,152.00 "
Care & Support,Mental Health & Substance Misuse,HMBG,Third Party Payments,External Foster Care Payments,POHWER,13/07/2012," 3,259.11 "
Care & Support,Mental Health & Substance Misuse,HMBJ,Third Party Payments,Residential Expenditure,D B ROBERTS,13/07/2012, 777.83 
Care & Support,Mental Health & Substance Misuse,HPAB,Supplies & Services,Comp Software (Purch / Hire),OLM SYSTEMS LTD,17/07/2012," 6,362.50 "
Care & Support,Mental Health & Substance Misuse,HPAB,Supplies & Services,Computer Software (Maint),CARE MONITORING 2000 LTD,23/07/2012," 6,686.67 "
Care & Support,Older People & Physical Disability,HOAN,Supplies & Services,Mobile Phones,ORANGE PCS LTD,09/07/2012, 870.00 
Care & Support,Older People & Physical Disability,HOAN,Supplies & Services,Mobile Phones,ORANGE PCS LTD,09/07/2012, 870.00 
Care & Support,Older People & Physical Disability,HOAN,Supplies & Services,Mobile Phones,ORANGE PCS LTD,06/07/2012, 870.00 
Care & Support,Older People & Physical Disability,HOAP,Supplies & Services,Equipment - Repair,STANNAH LIFT SERVICES LTD,30/07/2012, 618.00 
Care & Support,Older People & Physical Disability,HOAP,Supplies & Services,Aids & Appliances,NOTTINGHAM REHAB LIMITED,13/07/2012," 1,026.72 "
Care & Support,Older People & Physical Disability,HOAP,Supplies & Services,Aids & Appliances,MOUNTWAY LTD,11/07/2012," 2,590.00 "
Care & Support,Older People & Physical Disability,HOAP,Supplies & Services,Aids & Appliances,POWERGUARDS INC RAMPING SYSTEMS,05/07/2012, 592.80 
Care & Support,Older People & Physical Disability,HOAP,Supplies & Services,Aids & Appliances,PivoTell Ltd,30/07/2012, 965.00 
Care & Support,Older People & Physical Disability,HOAP,Supplies & Services,Aids & Appliances,CEFNDY ENTERPRISES HEALTHCARE,25/07/2012, 508.20 
Care & Support,Older People & Physical Disability,HOAP,Supplies & Services,Aids & Appliances,MANGAR INTERNATIONAL LTD,02/07/2012," 3,400.00 "
Care & Support,Older People & Physical Disability,HOAP,Supplies & Services,Adaptations,TRAVIS PERKINS TRADING CO LIMITED,30/07/2012, 655.00 
Care & Support,Older People & Physical Disability,HOAP,Supplies & Services,Adaptations,TRAVIS PERKINS TRADING CO LIMITED,30/07/2012, 541.00 
Care & Support,Older People & Physical Disability,HOAP,Supplies & Services,Adaptations,TRAVIS PERKINS TRADING CO LIMITED,25/07/2012, 522.98 
Care & Support,Older People & Physical Disability,HOAP,Supplies & Services,Adaptations,TRAVIS PERKINS TRADING CO LIMITED,03/07/2012, 541.00 
Care & Support,Older People & Physical Disability,HOAP,Supplies & Services,Other Expenses,HANDICARE ACCESSIBILITY LIMITED,27/07/2012," 5,186.25 "
Care & Support,Older People & Physical Disability,HOAW,Supplies & Services,Mobile Phones,ORANGE PCS LTD,03/07/2012, 725.00 
Care & Support,Older People & Physical Disability,HOAW,Supplies & Services,Mobile Phones,ORANGE PCS LTD,03/07/2012, 725.00 
Care & Support,Older People & Physical Disability,HOAZ,Third Party Payments,Homecare Expenditure,SUPREME HOME CARE,25/07/2012, 757.79 
Care & Support,Older People & Physical Disability,HOAZ,Third Party Payments,Homecare Expenditure,SUPREME HOME CARE,25/07/2012, 736.10 
Care & Support,Older People & Physical Disability,HOCJ,Third Party Payments,Residential Expenditure,COVERAGE CARE SERVICES LTD,17/07/2012," 5,428.92 "
Care & Support,Older People & Physical Disability,HOCM,Employees,Agency Supply Costs,MEDICONNECT RECRUITMENT LTD,16/07/2012," 1,131.70 "
Care & Support,Older People & Physical Disability,HOCM,Employees,Agency Supply Costs,MEDICONNECT RECRUITMENT LTD,16/07/2012," 1,092.70 "
Care & Support,Older People & Physical Disability,HOCM,Employees,Agency Supply Costs,MEDICONNECT RECRUITMENT LTD,16/07/2012," 1,118.18 "
Care & Support,Older People & Physical Disability,HOCM,Employees,Agency Supply Costs,MEDICONNECT RECRUITMENT LTD,16/07/2012, 997.96 
Care & Support,Older People & Physical Disability,HOCM,Employees,Agency Supply Costs,MEDICONNECT RECRUITMENT LTD,16/07/2012," 1,115.58 "
Care & Support,Older People & Physical Disability,HOCM,Employees,Agency Supply Costs,MEDICONNECT RECRUITMENT LTD,16/07/2012, 997.50 
Care & Support,Older People & Physical Disability,HOCM,Employees,Agency Supply Costs,MEDICONNECT RECRUITMENT LTD,16/07/2012," 1,131.70 "
Care & Support,Older People & Physical Disability,HOCM,Employees,Agency Supply Costs,MEDICONNECT RECRUITMENT LTD,25/07/2012," 1,084.08 "
Care & Support,Older People & Physical Disability,HOCM,Employees,Agency Supply Costs,MEDICONNECT RECRUITMENT LTD,27/07/2012," 1,236.74 "
Care & Support,Older People & Physical Disability,HOCM,Employees,Agency Supply Costs,MEDICONNECT RECRUITMENT LTD,25/07/2012," 1,094.98 "
Care & Support,Older People & Physical Disability,JCAB,Supplies & Services,Supportive Lodgings,THEO LANGSTON,20/07/2012," 1,574.72 "
Care & Support,Older People & Physical Disability,JCAB,Supplies & Services,Supportive Lodgings,LEAVING CARE COMPANY,27/07/2012, 681.43 
Care & Support,Older People & Physical Disability,JCAB,Supplies & Services,Supportive Lodgings,LEAVING CARE COMPANY,27/07/2012," 1,939.29 "
Care & Support,Older People & Physical Disability,JCAB,Supplies & Services,Supportive Lodgings,NEXT STEP CARE MANAGEMENT LTD,24/07/2012," 11,571.39 "
Care & Support,Older People & Physical Disability,JCAB,Supplies & Services,Supportive Lodgings,LEAVING CARE COMPANY,27/07/2012," 2,125.71 "
Care & Support,Older People & Physical Disability,JCAB,Supplies & Services,Supportive Lodgings,LEAVING CARE COMPANY,27/07/2012," 2,125.71 "
Care & Support,Older People & Physical Disability,JCAB,Supplies & Services,Supportive Lodgings,LEAVING CARE COMPANY,27/07/2012," 4,772.14 "
Care & Support,Older People & Physical Disability,JCAB,Supplies & Services,Supportive Lodgings,THEO LANGSTON,27/07/2012," 1,630.96 "
Care & Support,Older People & Physical Disability,JCAB,Supplies & Services,Supportive Lodgings,THEO LANGSTON,27/07/2012, 988.21 
Care & Support,Older People & Physical Disability,JCAB,Supplies & Services,Supportive Lodgings,THEO LANGSTON,27/07/2012, 949.22 
Care & Support,Older People & Physical Disability,JCAB,Supplies & Services,Supportive Lodgings,LEAVING CARE COMPANY,27/07/2012," 2,057.14 "
Care & Support,Older People & Physical Disability,JCAB,Supplies & Services,Supportive Lodgings,THEO LANGSTON,27/07/2012," 1,879.22 "
Care & Support,Older People & Physical Disability,JCAB,Supplies & Services,Supportive Lodgings,FOSTER CARE ASSOCIATES LTD,31/07/2012," 2,037.01 "
Care & Support,Older People & Physical Disability,JCAB,Supplies & Services,Supportive Lodgings,THEO LANGSTON,09/07/2012,"-2,137.12 "
Care & Support,Older People & Physical Disability,JCAB,Supplies & Services,Supportive Lodgings,LEAVING CARE COMPANY,27/07/2012," 2,057.14 "
Care & Support,Older People & Physical Disability,JCAB,Supplies & Services,Supportive Lodgings,LEAVING CARE COMPANY,27/07/2012," 2,057.14 "
Care & Support,Older People & Physical Disability,JCAB,Supplies & Services,Supportive Lodgings,THEO LANGSTON,27/07/2012," 1,879.22 "
Care & Support,Older People & Physical Disability,JCAB,Supplies & Services,Supportive Lodgings,THEO LANGSTON,27/07/2012," 1,347.57 "
Care & Support,Older People & Physical Disability,JCAB,Supplies & Services,Supportive Lodgings,LEAVING CARE COMPANY,27/07/2012," 2,661.43 "
Care & Support,Older People & Physical Disability,JCAB,Supplies & Services,Supportive Lodgings,LEAVING CARE COMPANY,27/07/2012," 2,622.43 "
Care & Support,Older People & Physical Disability,JCAB,Supplies & Services,Supportive Lodgings,LEAVING CARE COMPANY,27/07/2012," 2,125.71 "
Care & Support,Older People & Physical Disability,JCAB,Supplies & Services,Supportive Lodgings,LEAVING CARE COMPANY,27/07/2012," 2,010.00 "
Care & Support,Older People & Physical Disability,JCAB,Supplies & Services,Supportive Lodgings,LEAVING CARE COMPANY,27/07/2012," 1,703.57 "
Care & Support,Older People & Physical Disability,JCAB,Supplies & Services,Supportive Lodgings,LEAVING CARE COMPANY,27/07/2012," 1,703.57 "
Care & Support,Older People & Physical Disability,JCAB,Supplies & Services,Supportive Lodgings,LEAVING CARE COMPANY,27/07/2012," 2,528.57 "
Care & Support,Older People & Physical Disability,JCAB,Supplies & Services,Supportive Lodgings,LEAVING CARE COMPANY,27/07/2012," 3,492.86 "
Care & Support,Older People & Physical Disability,JPBA,Supplies & Services,Supportive Lodgings,OLD VICARAGE,20/07/2012, 630.00 
Care & Support,Older People & Physical Disability,JPBA,Supplies & Services,Supportive Lodgings,OLD VICARAGE,24/07/2012, 630.00 
Children & Family Services,Case Management & Children in Care,JMAC,Supplies & Services,Other Services,ELMHURST PSYCHOLOGY LTD,16/07/2012, 981.75 
Children & Family Services,Case Management & Children in Care,JMAE,Supplies & Services,Other Services,LIVING SPRINGS FAMILY CENTRE,12/07/2012," 9,801.86 "
Children & Family Services,Case Management & Children in Care,JMAE,Supplies & Services,Other Services,LIVING SPRINGS FAMILY CENTRE,12/07/2012," 7,046.48 "
Children & Family Services,Case Management & Children in Care,JMAE,Supplies & Services,Other Services,LIVING SPRINGS FAMILY CENTRE,12/07/2012," 15,157.00 "
Children & Family Services,Case Management & Children in Care,JMAE,Supplies & Services,Other Services,LIVING SPRINGS FAMILY CENTRE,12/07/2012," 18,213.67 "
Children & Family Services,Case Management & Children in Care,JMAE,Supplies & Services,Other Services,LIVING SPRINGS FAMILY CENTRE,12/07/2012," 11,367.75 "
Children & Family Services,Placements & Fostering,JPAD,Third Party Payments,External Foster Care Payments,HILLCREST CARE LTD,23/07/2012," 3,172.07 "
Children & Family Services,Placements & Fostering,JPAD,Third Party Payments,External Foster Care Payments,FOSTER CARE ASSOCIATES LTD,23/07/2012," 3,143.40 "
Children & Family Services,Placements & Fostering,JPAD,Third Party Payments,External Foster Care Payments,FOSTER CARE ASSOCIATES LTD,23/07/2012, 912.60 
Children & Family Services,Placements & Fostering,JPAD,Third Party Payments,External Foster Care Payments,CLIFFORD HOUSE FOSTERING LTD,30/07/2012," 3,412.00 "
Children & Family Services,Placements & Fostering,JPAD,Third Party Payments,External Foster Care Payments,FOSTER CARE ASSOCIATES LTD,24/07/2012," 2,167.90 "
Children & Family Services,Placements & Fostering,JPAD,Third Party Payments,External Foster Care Payments,HILLCREST CARE LTD,18/07/2012," 2,863.24 "
Children & Family Services,Placements & Fostering,JPAD,Third Party Payments,External Foster Care Payments,HILLCREST CARE LTD,23/07/2012," 3,013.93 "
Children & Family Services,Placements & Fostering,JPAD,Third Party Payments,External Foster Care Payments,FOSTER CARE ASSOCIATES LTD,23/07/2012," 3,537.10 "
Children & Family Services,Placements & Fostering,JPAD,Third Party Payments,External Foster Care Payments,FOSTER CARE ASSOCIATES LTD,23/07/2012," 3,537.10 "
Children & Family Services,Placements & Fostering,JPAD,Third Party Payments,External Foster Care Payments,FOSTER CARE ASSOCIATES LTD,23/07/2012," 3,143.40 "
Children & Family Services,Placements & Fostering,JPAD,Third Party Payments,External Foster Care Payments,FOSTER CARE ASSOCIATES LTD,23/07/2012," 3,366.60 "
Children & Family Services,Placements & Fostering,JPAD,Third Party Payments,External Foster Care Payments,HILLCREST CARE LTD,23/07/2012," 3,339.00 "
Children & Family Services,Placements & Fostering,JPAD,Third Party Payments,External Foster Care Payments,HILLCREST CARE LTD,30/07/2012," 2,958.68 "
Children & Family Services,Placements & Fostering,JPAD,Third Party Payments,External Foster Care Payments,ACTION FOR CHILDREN LIMITED,30/07/2012," 5,600.91 "
Children & Family Services,Placements & Fostering,JPAD,Third Party Payments,External Foster Care Payments,FOSTER CARE ASSOCIATES LTD,11/07/2012,"-4,316.41 "
Children & Family Services,Placements & Fostering,JPAD,Third Party Payments,External Foster Care Payments,FAMILIES@FAMILYCARE,06/07/2012," 3,697.68 "
Children & Family Services,Placements & Fostering,JPAD,Third Party Payments,External Foster Care Payments,FAMILIES@FAMILYCARE,06/07/2012," 4,229.02 "
Children & Family Services,Placements & Fostering,JPAD,Third Party Payments,External Foster Care Payments,HILLCREST CARE LTD,24/07/2012," 3,514.29 "
Children & Family Services,Placements & Fostering,JPAD,Third Party Payments,External Foster Care Payments,HILLCREST CARE LTD,24/07/2012," 3,238.41 "
Children & Family Services,Placements & Fostering,JPAD,Third Party Payments,External Foster Care Payments,HILLCREST CARE LTD,24/07/2012," 2,978.57 "
Children & Family Services,Placements & Fostering,JPAD,Third Party Payments,External Foster Care Payments,FOSTER CARE ASSOCIATES LTD,24/07/2012," 3,265.60 "
Children & Family Services,Placements & Fostering,JPAD,Third Party Payments,External Foster Care Payments,HILLCREST CARE LTD,24/07/2012," 3,107.14 "
Children & Family Services,Placements & Fostering,JPAD,Third Party Payments,External Foster Care Payments,HILLCREST CARE LTD,24/07/2012," 1,700.00 "
Children & Family Services,Placements & Fostering,JPAD,Third Party Payments,External Foster Care Payments,RED KITE FOSTERING,18/07/2012," 5,247.86 "
Children & Family Services,Placements & Fostering,JPAD,Third Party Payments,External Foster Care Payments,FOSTER CARE ASSOCIATES LTD,18/07/2012, 525.68 
Children & Family Services,Placements & Fostering,JPAD,Third Party Payments,External Foster Care Payments,HILLCREST CARE LTD,19/07/2012," 2,678.57 "
Children & Family Services,Placements & Fostering,JPAD,Third Party Payments,External Foster Care Payments,HILLCREST CARE LTD,19/07/2012," 3,236.79 "
Children & Family Services,Placements & Fostering,JPAD,Third Party Payments,External Foster Care Payments,HILLCREST CARE LTD,19/07/2012," 3,415.09 "
Children & Family Services,Placements & Fostering,JPAD,Third Party Payments,External Foster Care Payments,HILLCREST CARE LTD,09/07/2012," 2,838.00 "
Children & Family Services,Placements & Fostering,JPAD,Third Party Payments,External Foster Care Payments,HILLCREST CARE LTD,09/07/2012," 2,978.57 "
Children & Family Services,Placements & Fostering,JPAD,Third Party Payments,External Foster Care Payments,SWIIS FOSTER CARE LTD,05/07/2012, 895.00 
Children & Family Services,Placements & Fostering,JPAD,Third Party Payments,External Foster Care Payments,Childcare Bureau,09/07/2012," 4,130.75 "
Children & Family Services,Placements & Fostering,JPAD,Third Party Payments,External Foster Care Payments,RED KITE FOSTERING,09/07/2012," 5,078.57 "
Children & Family Services,Placements & Fostering,JPAD,Third Party Payments,External Foster Care Payments,FOSTER CARE ASSOCIATES LTD,13/07/2012," 3,430.99 "
Children & Family Services,Placements & Fostering,JPAD,Third Party Payments,External Foster Care Payments,FOSTER CARE ASSOCIATES LTD,23/07/2012," 1,992.68 "
Children & Family Services,Placements & Fostering,JPAD,Third Party Payments,External Foster Care Payments,FOSTER CARE ASSOCIATES LTD,23/07/2012," 3,537.10 "
Children & Family Services,Placements & Fostering,JPAD,Third Party Payments,External Foster Care Payments,FOSTER CARE ASSOCIATES LTD,23/07/2012," 3,049.10 "
Children & Family Services,Placements & Fostering,JPAD,Third Party Payments,External Foster Care Payments,HILLCREST CARE LTD,24/07/2012," 3,236.79 "
Children & Family Services,Placements & Fostering,JPAD,Third Party Payments,External Foster Care Payments,FAMILIES@FAMILYCARE,25/07/2012," 2,403.43 "
Children & Family Services,Placements & Fostering,JPAD,Third Party Payments,External Foster Care Payments,HILLCREST CARE LTD,19/07/2012," 2,550.00 "
Children & Family Services,Placements & Fostering,JPAD,Third Party Payments,External Foster Care Payments,FOSTER CARE ASSOCIATES LTD,23/07/2012," 3,703.88 "
Children & Family Services,Placements & Fostering,JPAD,Third Party Payments,External Foster Care Payments,FOSTER CARE ASSOCIATES LTD,23/07/2012," 3,366.60 "
Children & Family Services,Placements & Fostering,JPAD,Third Party Payments,External Foster Care Payments,FOSTER CARE ASSOCIATES LTD,23/07/2012," 3,143.40 "
Children & Family Services,Placements & Fostering,JPAD,Third Party Payments,External Foster Care Payments,HILLCREST CARE LTD,23/07/2012," 2,863.24 "
Children & Family Services,Placements & Fostering,JPAD,Third Party Payments,External Foster Care Payments,HILLCREST CARE LTD,23/07/2012," 3,137.14 "
Children & Family Services,Placements & Fostering,JPAD,Third Party Payments,External Foster Care Payments,HILLCREST CARE LTD,23/07/2012," 3,236.79 "
Children & Family Services,Placements & Fostering,JPAD,Third Party Payments,External Foster Care Payments,FOSTER CARE ASSOCIATES LTD,23/07/2012," 3,445.32 "
Children & Family Services,Placements & Fostering,JPAD,Third Party Payments,External Foster Care Payments,FOSTER CARE ASSOCIATES LTD,23/07/2012," 3,430.99 "
Children & Family Services,Placements & Fostering,JPAD,Third Party Payments,External Foster Care Payments,HILLCREST CARE LTD,17/07/2012," 1,875.00 "
Children & Family Services,Placements & Fostering,JPAD,Third Party Payments,External Foster Care Payments,FOSTER CARE ASSOCIATES LTD,23/07/2012," 3,143.40 "
Children & Family Services,Placements & Fostering,JPAD,Third Party Payments,External Foster Care Payments,HILLCREST CARE LTD,19/07/2012," 3,514.29 "
Children & Family Services,Placements & Fostering,JPAD,Third Party Payments,External Foster Care Payments,HILLCREST CARE LTD,19/07/2012," 3,339.00 "
Children & Family Services,Placements & Fostering,JPAD,Third Party Payments,External Foster Care Payments,FOSTER CARE ASSOCIATES LTD,24/07/2012," 5,685.40 "
Children & Family Services,Placements & Fostering,JPAD,Third Party Payments,External Foster Care Payments,FOSTER CARE ASSOCIATES LTD,24/07/2012," 3,763.05 "
Children & Family Services,Placements & Fostering,JPAF,Supplies & Services,Other Services,NEWSTART NETWORKS CIC,19/07/2012," 1,200.00 "
Children & Family Services,Placements & Fostering,JPAN,Third Party Payments,Residential Expenditure,EDUCARE ADOLESCENT SERVICES LTD,23/07/2012," 14,614.33 "
Children & Family Services,Placements & Fostering,JPAN,Third Party Payments,Residential Expenditure,CASTLE HOMES CARE LIMITED,29/07/2012," 12,952.50 "
Children & Family Services,Placements & Fostering,JPAN,Third Party Payments,Residential Expenditure,AMBERLEIGH CARE LIMITED,03/07/2012," 15,407.00 "
Children & Family Services,Placements & Fostering,JPAN,Third Party Payments,Residential Expenditure,EDUCARE ADOLESCENT SERVICES LTD,23/07/2012," 11,800.04 "
Children & Family Services,Placements & Fostering,JPAN,Third Party Payments,Residential Expenditure,YOUNG OPTIONS COLLEGE LTD,30/07/2012," 15,035.00 "
Children & Family Services,Placements & Fostering,JPAN,Third Party Payments,Residential Expenditure,SUNFIELD CHILDRENS HOMES LTD,16/07/2012," 2,142.71 "
Children & Family Services,Placements & Fostering,JPAN,Third Party Payments,Residential Expenditure,INDEPENDENT CHILDCARE GROUP OF SCHOOLS L,11/07/2012,"-16,307.10 "
Children & Family Services,Placements & Fostering,JPAN,Third Party Payments,Residential Expenditure,SUNFIELD CHILDRENS HOMES LTD,11/07/2012,"-2,142.71 "
Children & Family Services,Placements & Fostering,JPAN,Third Party Payments,Residential Expenditure,REFLEXION CARE GROUP LTD,11/07/2012,-784.00 
Children & Family Services,Placements & Fostering,JPAN,Third Party Payments,Residential Expenditure,REFLEXION CARE GROUP LTD,11/07/2012,"-4,032.00 "
Children & Family Services,Placements & Fostering,JPAN,Third Party Payments,Residential Expenditure,SACCS CARE LTD,31/07/2012," 20,477.71 "
Children & Family Services,Placements & Fostering,JPAN,Third Party Payments,Residential Expenditure,SACCS CARE LTD,31/07/2012," 20,477.71 "
Children & Family Services,Placements & Fostering,JPAN,Third Party Payments,Residential Expenditure,AMBERLEIGH CARE LIMITED,31/07/2012," 15,074.86 "
Children & Family Services,Placements & Fostering,JPAN,Third Party Payments,Residential Expenditure,KEYS CHILDCARE LTD,31/07/2012, 850.00 
Children & Family Services,Placements & Fostering,JPAN,Third Party Payments,Residential Expenditure,EDUCARE ADOLESCENT SERVICES LTD,31/07/2012," 13,064.33 "
Children & Family Services,Placements & Fostering,JPAN,Third Party Payments,Residential Expenditure,EDUCARE ADOLESCENT SERVICES LTD,31/07/2012," 13,064.33 "
Children & Family Services,Placements & Fostering,JPAN,Third Party Payments,Residential Expenditure,EDUCARE ADOLESCENT SERVICES LTD,31/07/2012," 11,378.61 "
Children & Family Services,Placements & Fostering,JPAN,Third Party Payments,Residential Expenditure,NEW HORIZONS CHILD CARE LTD,31/07/2012," 13,728.66 "
Children & Family Services,Placements & Fostering,JPAN,Third Party Payments,Residential Expenditure,EDUCARE ADOLESCENT SERVICES LTD,23/07/2012," 15,500.00 "
Children & Family Services,Placements & Fostering,JPAN,Third Party Payments,Residential Expenditure,SUNFIELD CHILDRENS HOMES LTD,12/07/2012," 48,325.01 "
Children & Family Services,Placements & Fostering,JPAN,Third Party Payments,Residential Expenditure,KEYS CHILDCARE LTD,23/07/2012," 11,314.20 "
Children & Family Services,Placements & Fostering,JPAN,Third Party Payments,Residential Expenditure,KEYS CHILDCARE LTD,23/07/2012," 10,240.00 "
Children & Family Services,Placements & Fostering,JPAN,Third Party Payments,Residential Expenditure,KEYS CHILDCARE LTD,23/07/2012," 11,314.20 "
Children & Family Services,Placements & Fostering,JPAN,Third Party Payments,Residential Expenditure,PETERBOROUGH CITY COUNCIL,31/07/2012," 24,180.00 "
Children & Family Services,Placements & Fostering,JPAN,Third Party Payments,Residential Expenditure,CASTLE HOMES CARE LIMITED,11/07/2012," 39,147.12 "
Children & Family Services,Placements & Fostering,JPAN,Third Party Payments,Residential Expenditure,CASTLE HOMES CARE LIMITED,11/07/2012," 39,147.12 "
Children & Family Services,Placements & Fostering,JPAN,Third Party Payments,Residential Expenditure,SUNFIELD CHILDRENS HOMES LTD,23/07/2012," 47,073.50 "
Children & Family Services,Placements & Fostering,JPAN,Third Party Payments,Residential Expenditure,SUNFIELD CHILDRENS HOMES LTD,03/07/2012,"-3,756.59 "
Children & Family Services,Placements & Fostering,JPAN,Third Party Payments,Residential Expenditure,EDUCARE ADOLESCENT SERVICES LTD,23/07/2012," 25,021.34 "
Children & Family Services,Safeguarding Advisory,JHAB,Supplies & Services,Subscriptions,WORCESTERSHIRE COUNTY COUNCIL,12/07/2012," 3,750.00 "
Children & Family Services,Safeguarding Advisory,JHAC,Supplies & Services,Other Grants (Expenses),SHROPSHIRE COMMUNITY HEALTH NHS TRUST,27/07/2012," 27,984.00 "
Co-Operative Council,Communications & Marketing,LMAC,Supplies & Services,Computer Software (Maint),JADU LIMITED,30/07/2012," 4,860.00 "
Co-Operative Council,Communications & Marketing,LMAC,Supplies & Services,Computer Software (Maint),JADU LIMITED,17/07/2012," 5,000.00 "
Co-Operative Council,Communications & Marketing,MMAB,Supplies & Services,Community Newspaper,Leaflet Distribution Services Ltd,31/07/2012," 5,050.12 "
Co-Operative Council,Communications & Marketing,MMAD,Employees,Recruitment Advertising,THE MIDLAND NEWS ASSOCIATION LTD,25/07/2012, 597.24 
Co-Operative Council,Communications & Marketing,MMAD,Employees,Recruitment Advertising,THE MIDLAND NEWS ASSOCIATION LTD,12/07/2012," 1,278.00 "
Co-Operative Council,Communications & Marketing,MMAD,Employees,Recruitment Advertising,THE MIDLAND NEWS ASSOCIATION LTD,05/07/2012, 540.90 
Co-Operative Council,Communications & Marketing,MMAD,Employees,Recruitment Advertising,THE MIDLAND NEWS ASSOCIATION LTD,04/07/2012, 642.42 
Co-Operative Council,Communications & Marketing,MMAD,Employees,Recruitment Advertising,THE MIDLAND NEWS ASSOCIATION LTD,09/07/2012, 976.75 
Co-Operative Council,Communications & Marketing,MMAD,Employees,Recruitment Advertising,THE MIDLAND NEWS ASSOCIATION LTD,31/07/2012," 2,317.50 "
Co-Operative Council,Communications & Marketing,MMAD,Employees,Recruitment Advertising,TOTALJOBS GROUP,04/07/2012, 990.00 
Co-Operative Council,Communications & Marketing,MMAD,Supplies & Services,Conference Expenses,THE MIDLAND NEWS ASSOCIATION LTD,31/07/2012, 577.49 
Co-Operative Council,Communications & Marketing,MMAD,Supplies & Services,Advertising,THE MIDLAND NEWS ASSOCIATION LTD,05/07/2012, 585.00 
Co-Operative Council,Communications & Marketing,MMAD,Supplies & Services,Advertising,THE MIDLAND NEWS ASSOCIATION LTD,05/07/2012," 1,087.31 "
Co-Operative Council,Communications & Marketing,MMAD,Supplies & Services,Advertising,THE MIDLAND NEWS ASSOCIATION LTD,05/07/2012, 616.00 
Co-Operative Council,Communications & Marketing,MMAD,Supplies & Services,Advertising,ORION MEDIA,05/07/2012," 1,367.74 "
Co-Operative Council,Communications & Marketing,MMAD,Supplies & Services,Advertising,THE MIDLAND NEWS ASSOCIATION LTD,05/07/2012," 1,087.32 "
Co-Operative Council,Communications & Marketing,MMAD,Supplies & Services,Advertising,THE MIDLAND NEWS ASSOCIATION LTD,04/07/2012, 672.00 
Co-Operative Council,Communications & Marketing,MMAD,Supplies & Services,Advertising,THE MIDLAND NEWS ASSOCIATION LTD,06/07/2012, 820.00 
Co-Operative Council,Communications & Marketing,MMAD,Supplies & Services,Advertising,REED BUSINESS INFORMATION LTD,11/07/2012," 1,067.50 "
Co-Operative Council,Communications & Marketing,MMAD,Supplies & Services,Advertising,THE MIDLAND NEWS ASSOCIATION LTD,11/07/2012," 1,061.10 "
Co-Operative Council,Communications & Marketing,MMAD,Supplies & Services,Advertising,THE MIDLAND NEWS ASSOCIATION LTD,11/07/2012, 530.55 
Co-Operative Council,Communications & Marketing,MMAD,Supplies & Services,Advertising,THE MIDLAND NEWS ASSOCIATION LTD,30/07/2012, 537.30 
Co-Operative Council,Communications & Marketing,MMAD,Supplies & Services,Advertising,THE MIDLAND NEWS ASSOCIATION LTD,25/07/2012, 577.49 
Co-Operative Council,Communications & Marketing,MMAD,Supplies & Services,Advertising,THE MIDLAND NEWS ASSOCIATION LTD,31/07/2012, 501.84 
Co-Operative Council,Communications & Marketing,MMAD,Supplies & Services,Advertising,UBM INFORMATION LTD,04/07/2012," 1,500.00 "
Co-Operative Council,Community Engagement & Voluntary Sector,AEAH,Supplies & Services,Grant  Payment,A4U,25/07/2012," 12,690.00 "
Co-Operative Council,Community Engagement & Voluntary Sector,LEAC,Premises-Related Expenditure,Electricity,West Mercia Energy (WME),30/07/2012,-506.95 
Co-Operative Council,Community Engagement & Voluntary Sector,LEAC,Premises-Related Expenditure,Electricity,West Mercia Energy (WME),30/07/2012, 520.69 
Co-Operative Council,Community Engagement & Voluntary Sector,LEAC,Premises-Related Expenditure,Electricity,West Mercia Energy (WME),11/07/2012, 506.95 
Co-Operative Council,Community Engagement & Voluntary Sector,LEAC,Premises-Related Expenditure,Gas,BRITISH GAS SERVICES (COMMERCIAL) LTD,11/07/2012, 674.14 
Co-Operative Council,Community Engagement & Voluntary Sector,LEAC,Premises-Related Expenditure,Gas,BRITISH GAS BUSINESS (ELECTRICITY),11/07/2012, 933.14 
Co-Operative Council,Community Engagement & Voluntary Sector,LEAC,Supplies & Services,Other Expenses,PARK LANE CENTRE,06/07/2012," 10,600.00 "
Co-Operative Council,Community Engagement & Voluntary Sector,LEAC,Transport-Related Expenditure,Licences,PHONOGRAPHIC PERFORMANCE LTD,03/07/2012, 876.37 
Co-Operative Council,Corporate Core,MHAB,Employees,Professional Subs,ADASS,12/07/2012," 1,535.00 "
Customer & People Services,Customer Services Manager,LMAA,Supplies & Services,Employee Uniforms,IMAGE@WORK LTD,17/07/2012," 1,712.87 "
Customer & People Services,Customer Services Manager,LMAA,Supplies & Services,Employee Uniforms,IMAGE@WORK LTD,17/07/2012," 3,369.01 "
Customer & People Services,Facilities (Catering & Cleaning),CACO,Supplies & Services,Equipment - Hire,AUTOBAR UK LTD,17/07/2012, 698.26 
Customer & People Services,Facilities (Catering & Cleaning),CALC,Supplies & Services,Other Grants (Expenses),SCHOOL FOOD TRUST,26/07/2012," 4,500.00 "
Customer & People Services,Facilities (Catering & Cleaning),CAMA,Employees,Training Expenses,APSE,17/07/2012," 3,019.00 "
Customer & People Services,Facilities (Catering & Cleaning),CAMA,Supplies & Services,Equipment - Hire,HORIZON SOFT DRINKS LTD,17/07/2012," 5,375.37 "
Customer & People Services,Facilities (Catering & Cleaning),CASM,Supplies & Services,EEC Whole Milk,JOHAL DAIRIES,26/07/2012," 3,050.74 "
Customer & People Services,Facilities (Catering & Cleaning),CASM,Supplies & Services,EEC Whole Milk,JOHAL DAIRIES,26/07/2012," 3,050.74 "
Customer & People Services,Facilities (Catering & Cleaning),CASM,Supplies & Services,EEC Whole Milk,JOHAL DAIRIES,26/07/2012," 3,034.90 "
Customer & People Services,Facilities (Catering & Cleaning),CASM,Supplies & Services,EEC Whole Milk,JOHAL DAIRIES,26/07/2012," 3,050.74 "
Customer & People Services,Facilities (Catering & Cleaning),CASM,Supplies & Services,EEC Whole Milk,JOHAL DAIRIES,25/07/2012, 863.33 
Customer & People Services,Facilities (Catering & Cleaning),CASM,Supplies & Services,EEC Whole Milk,JOHAL DAIRIES,25/07/2012," 2,898.31 "
Customer & People Services,Facilities (Catering & Cleaning),CASS,Supplies & Services,Provisions,SMART FOOD,24/07/2012, 508.58 
Customer & People Services,ICT - Infrastructure & Operations,CBAC,Supplies & Services,Comp Hardware (Purch / Hire),SPECIALIST COMPUTERS CENTRES PLC,23/07/2012, 810.00 
Customer & People Services,ICT - Infrastructure & Operations,CBAF,Supplies & Services,Equipment - Purchase,CCS MEDIA LIMITED,13/07/2012," 3,339.00 "
Customer & People Services,ICT - Infrastructure & Operations,CBAF,Supplies & Services,Equipment - Purchase,CCS MEDIA LIMITED,13/07/2012," 1,008.00 "
Customer & People Services,ICT - Infrastructure & Operations,CBAF,Supplies & Services,Comp Hardware (Purch / Hire),SPECIALIST COMPUTERS CENTRES PLC,03/07/2012," 4,095.90 "
Customer & People Services,ICT - Infrastructure & Operations,CBAF,Supplies & Services,Comp Hardware (Purch / Hire),SPECIALIST COMPUTERS CENTRES PLC,24/07/2012," 4,050.00 "
Customer & People Services,ICT - Infrastructure & Operations,CBAF,Supplies & Services,Comp Hardware (Purch / Hire),SPECIALIST COMPUTERS CENTRES PLC,23/07/2012," 1,306.80 "
Customer & People Services,ICT - Infrastructure & Operations,CBAF,Supplies & Services,Comp Hardware (Purch / Hire),SYNETRIX LTD,10/07/2012," 1,972.00 "
Customer & People Services,ICT - Infrastructure & Operations,CBAF,Supplies & Services,Comp Hardware (Purch / Hire),ORANGE PERSONAL COMM SERVICES LTD,10/07/2012, 843.60 
Customer & People Services,ICT - Infrastructure & Operations,CBAF,Supplies & Services,Comp Hardware (Purch / Hire),SPECIALIST COMPUTERS CENTRES PLC,23/07/2012," 4,050.00 "
Customer & People Services,ICT - Infrastructure & Operations,CBAF,Supplies & Services,Comp Hardware (Purch / Hire),SPECIALIST COMPUTERS CENTRES PLC,23/07/2012," 3,518.10 "
Customer & People Services,ICT - Infrastructure & Operations,CBAF,Supplies & Services,Comp Hardware (Purch / Hire),SPECIALIST COMPUTERS CENTRES PLC,09/07/2012," 1,191.58 "
Customer & People Services,ICT - Infrastructure & Operations,CBAF,Supplies & Services,Comp Hardware (Purch / Hire),SYNETRIX LTD,13/07/2012," 1,037.00 "
Customer & People Services,ICT - Infrastructure & Operations,CBAF,Supplies & Services,Mobile Phones,ORANGE PERSONAL COMM SERVICES LTD,16/07/2012, 725.17 
Customer & People Services,ICT - Infrastructure & Operations,CBAG,Supplies & Services,Telephones,VIRGIN MEDIA BUSINESS,24/07/2012," 8,491.77 "
Customer & People Services,ICT - Infrastructure & Operations,CBAG,Supplies & Services,Mobile Phones,ORANGE PCS LTD,16/07/2012," 4,667.99 "
Customer & People Services,ICT - Infrastructure & Operations,CBAG,Supplies & Services,Mobile Phones,ORANGE PERSONAL COMM SERVICES LTD,16/07/2012," 1,566.66 "
Customer & People Services,ICT - Infrastructure & Operations,CBAG,Supplies & Services,Mobile Phones,ORANGE PERSONAL COMM SERVICES LTD,16/07/2012," 14,716.65 "
Customer & People Services,ICT - Infrastructure & Operations,CBAG,Supplies & Services,Mobile Phones,ORANGE PERSONAL COMM SERVICES LTD,16/07/2012," 1,046.67 "
Customer & People Services,ICT - Infrastructure & Operations,CBAG,Supplies & Services,Mobile Phones,ORANGE PERSONAL COMM SERVICES LTD,16/07/2012," 7,221.81 "
Customer & People Services,ICT - Infrastructure & Operations,CBAH,Supplies & Services,Comp Software (Purch / Hire),CACI LTD,03/07/2012," 19,155.99 "
Customer & People Services,ICT - Infrastructure & Operations,CBAH,Supplies & Services,Comp Software (Purch / Hire),QUEST SOFTWARE UK LIMITED,13/07/2012," 11,690.40 "
Customer & People Services,ICT - Infrastructure & Operations,CBAH,Supplies & Services,External Computer Use,PHOENIX SOFTWARE LTD,24/07/2012," 17,600.00 "
Customer & People Services,ICT - Infrastructure & Operations,CBAH,Supplies & Services,External Computer Use,PHOENIX SOFTWARE LTD,24/07/2012, 650.00 
Customer & People Services,ICT - Infrastructure & Operations,CBAH,Supplies & Services,External Computer Use,PHOENIX SOFTWARE LTD,24/07/2012," 4,850.00 "
Customer & People Services,ICT - Infrastructure & Operations,CBAH,Supplies & Services,External Computer Use,PHOENIX SOFTWARE LTD,24/07/2012," 3,225.60 "
Customer & People Services,ICT - Infrastructure & Operations,CBAH,Supplies & Services,External Computer Use,PHOENIX SOFTWARE LTD,24/07/2012," 4,904.90 "
Customer & People Services,ICT - Infrastructure & Operations,CBAJ,Supplies & Services,Equipment - Purchase,PERT BUILDING SERVICES LTD,03/07/2012," 1,316.00 "
Customer & People Services,ICT - Infrastructure & Operations,CBAJ,Supplies & Services,Comp Hardware (Purch / Hire),SPECIALIST COMPUTERS CENTRES PLC,16/07/2012," 18,896.25 "
Customer & People Services,ICT - Infrastructure & Operations,CBAJ,Supplies & Services,Comp Hardware (Purch / Hire),SPECIALIST COMPUTERS CENTRES PLC,25/07/2012," 4,350.80 "
Customer & People Services,ICT - Infrastructure & Operations,CBAJ,Supplies & Services,Comp Hardware (Purch / Hire),SPECIALIST COMPUTERS CENTRES PLC,25/07/2012," 4,350.80 "
Customer & People Services,ICT - Infrastructure & Operations,CBAJ,Supplies & Services,Comp Hardware (Purch / Hire),SPECIALIST COMPUTERS CENTRES PLC,23/07/2012, 610.00 
Customer & People Services,ICT - Infrastructure & Operations,CBAJ,Supplies & Services,Comp Hardware (Purch / Hire),SPECIALIST COMPUTERS CENTRES PLC,13/07/2012," 11,337.75 "
Customer & People Services,ICT - Infrastructure & Operations,CBAJ,Supplies & Services,Comp Hardware (Purch / Hire),SPECIALIST COMPUTERS CENTRES PLC,25/07/2012," 4,350.80 "
Customer & People Services,ICT - Infrastructure & Operations,CBAJ,Supplies & Services,Comp Hardware (Purch / Hire),SPECIALIST COMPUTERS CENTRES PLC,13/07/2012, 508.11 
Customer & People Services,ICT - Infrastructure & Operations,CBAJ,Supplies & Services,Comp Hardware (Purch / Hire),SPECIALIST COMPUTERS CENTRES PLC,11/07/2012," 3,803.85 "
Customer & People Services,ICT - Infrastructure & Operations,CBAJ,Supplies & Services,Comp Hardware (Purch / Hire),SPECIALIST COMPUTERS CENTRES PLC,11/07/2012," 2,282.31 "
Customer & People Services,ICT - Infrastructure & Operations,CBAJ,Supplies & Services,Comp Hardware (Purch / Hire),SPECIALIST COMPUTERS CENTRES PLC,23/07/2012, 708.50 
Customer & People Services,ICT - Infrastructure & Operations,CBAJ,Supplies & Services,Comp Hardware (Purch / Hire),SPECIALIST COMPUTERS CENTRES PLC,03/07/2012," 13,460.40 "
Customer & People Services,ICT - Infrastructure & Operations,CBAJ,Supplies & Services,Computer Hardware (Maint),SYNETRIX LTD,11/07/2012," 4,116.00 "
Customer & People Services,ICT - Infrastructure & Operations,CBAJ,Supplies & Services,Comp Software (Purch / Hire),AQ LIMITED,10/07/2012, 773.49 
Customer & People Services,ICT - Infrastructure & Operations,CBAJ,Supplies & Services,Comp Software (Purch / Hire),ABACUS SOFTWARE LTD,03/07/2012," 6,828.00 "
Customer & People Services,ICT - Infrastructure & Operations,CBAJ,Supplies & Services,External Computer Use,SYNETRIX LTD,12/07/2012," 5,446.00 "
Customer & People Services,ICT - Infrastructure & Operations,CBAJ,Supplies & Services,Telephones,BRITISH TELECOMMUNICATIONS PLC,03/07/2012," 6,413.07 "
Customer & People Services,ICT - Infrastructure & Operations,CBAJ,Supplies & Services,Mobile Phones,ORANGE PCS LTD,24/07/2012," 4,860.00 "
Customer & People Services,ICT - Infrastructure & Operations,CBAK,Supplies & Services,Printing - Other,SILK GROUP LTD,05/07/2012,-896.00 
Customer & People Services,ICT - Infrastructure & Operations,CBAK,Supplies & Services,Printing - Other,TELFORD REPROGRAPHICS LTD,05/07/2012, 888.00 
Customer & People Services,ICT - Infrastructure & Operations,CBAK,Supplies & Services,Stationery,WEST MERCIA SUPPLIES Catalogue Supplies (None Utility),24/07/2012, 528.00 
Customer & People Services,ICT - Infrastructure & Operations,CBAK,Supplies & Services,Stationery,WEST MERCIA SUPPLIES Catalogue Supplies (None Utility),24/07/2012,-528.00 
Customer & People Services,ICT - Infrastructure & Operations,CBAK,Supplies & Services,Stationery,WEST MERCIA SUPPLIES Catalogue Supplies (None Utility),25/07/2012, 528.00 
Customer & People Services,ICT - Infrastructure & Operations,CBAK,Supplies & Services,Stationery,WEST MERCIA SUPPLIES Catalogue Supplies (None Utility),17/07/2012, 528.00 
Customer & People Services,ICT - Infrastructure & Operations,CBAK,Supplies & Services,Stationery,WEST MERCIA SUPPLIES Catalogue Supplies (None Utility),17/07/2012, 528.00 
Customer & People Services,ICT - Infrastructure & Operations,COAB,Supplies & Services,Postages,FRANCOTYP-POSTALIA LIMITED,02/07/2012," 9,798.80 "
Customer & People Services,ICT - Infrastructure & Operations,COAB,Supplies & Services,Postages,FP EXECUTIVE AGENCY LTD,17/07/2012," 1,113.40 "
Customer & People Services,ICT - Infrastructure & Operations,COAB,Supplies & Services,Postages,ROYAL MAIL GROUP LTD,17/07/2012," 3,400.00 "
Customer & People Services,ICT - Infrastructure & Operations,COAC,Supplies & Services,Postages,FRANCOTYP-POSTALIA LIMITED,17/07/2012," 10,000.00 "
Customer & People Services,ICT - Infrastructure & Operations,WCAG,Capital Expenditure,Payments to Contractor,SPECIALIST COMPUTERS CENTRES PLC,03/07/2012," 13,810.00 "
Customer & People Services,ICT - Infrastructure & Operations,WCAG,Capital Expenditure,Payments to Contractor,SPECIALIST COMPUTERS CENTRES PLC,03/07/2012," 13,810.00 "
Customer & People Services,ICT - Infrastructure & Operations,WCAG,Capital Expenditure,Payments to Contractor,SPECIALIST COMPUTERS CENTRES PLC,19/07/2012," 2,656.00 "
Customer & People Services,ICT - Infrastructure & Operations,WCAG,Capital Expenditure,Payments to Contractor,SPECIALIST COMPUTERS CENTRES PLC,19/07/2012," 1,330.00 "
Customer & People Services,ICT - Infrastructure & Operations,WCAG,Capital Expenditure,Payments to Contractor,SPECIALIST COMPUTERS CENTRES PLC,19/07/2012," 13,810.00 "
Customer & People Services,ICT - Infrastructure & Operations,WCAG,Capital Expenditure,Payments to Contractor,SPECIALIST COMPUTERS CENTRES PLC,09/07/2012," 2,148.00 "
Customer & People Services,ICT - Infrastructure & Operations,WCAG,Capital Expenditure,Payments to Contractor,SPECIALIST COMPUTERS CENTRES PLC,09/07/2012," 3,320.00 "
Customer & People Services,ICT - Infrastructure & Operations,WCAG,Capital Expenditure,Payments to Contractor,SPECIALIST COMPUTERS CENTRES PLC,09/07/2012, 770.00 
Customer & People Services,ICT - Infrastructure & Operations,WCAG,Capital Expenditure,Payments to Contractor,SPECIALIST COMPUTERS CENTRES PLC,09/07/2012, 840.00 
Customer & People Services,ICT - Infrastructure & Operations,WCAG,Capital Expenditure,Computer Hardware,Core Technology Systems (UK) Ltd,30/07/2012," 4,500.00 "
Customer & People Services,Library Services,LBTE,Premises-Related Expenditure,Electricity,West Mercia Energy (WME),09/07/2012, 720.22 
Customer & People Services,Library Services,LBTE,Premises-Related Expenditure,Electricity,West Mercia Energy (WME),31/07/2012, 695.57 
Customer & People Services,Library Services,LBTE,Premises-Related Expenditure,Gas,West Mercia Energy (WME),09/07/2012, 563.62 
Customer & People Services,Library Services,LLAA,Supplies & Services,Libraries Book Fund,AUDIOGO LIMITED,04/07/2012, 610.90 
Customer & People Services,Library Services,LLAA,Supplies & Services,Libraries Book Fund,Encyclopedia Britannica (UK) Ltd,23/07/2012," 1,732.50 "
Customer & People Services,Library Services,LLAF,Supplies & Services,Externally funded Furniture & equipment - Purchase,OPENING THE BOOK PROMOTIONS LTD,04/07/2012, 755.50 
Customer & People Services,Library Services,LLAF,Supplies & Services,Externally funded Furniture & equipment - Purchase,OPENING THE BOOK PROMOTIONS LTD,04/07/2012, 622.50 
Customer & People Services,Library Services,LLAF,Supplies & Services,Externally funded on-line Subscriptions,POLICY REVIEW TV LTD,04/07/2012, 623.00 
Customer & People Services,Organisational Improvement,NOAG,Supplies & Services,Equipment - Purchase,ELEMENTARY TECHNOLOGY LTD,11/07/2012, 521.00 
Customer & People Services,Organisational Improvement,NOAH,Supplies & Services,Computer Software (Maint),NORTHGATEARINSO UK LTD,23/07/2012," 3,000.00 "
Customer & People Services,Organisational Improvement,NOAM,Employees,Training Exp's (Facilitators),PIP MASON CONSULTANCY,26/07/2012," 1,500.00 "
Customer & People Services,Organisational Improvement,NOAT,Employees,Course Fees,THE SMALL WOODS ASSOCIATION,11/07/2012," 8,550.00 "
Customer & People Services,Organisational Improvement,NOAT,Employees,Training Exp's (Facilitators),SHROPSHIRE PARTNERS IN CARE LTD,25/07/2012," 1,055.00 "
Customer & People Services,Organisational Improvement,NOAT,Employees,Training Exp's (Facilitators),MENTAL HEALTH TRAINING GROUP,26/07/2012, 574.80 
Customer & People Services,Organisational Improvement,NOAT,Employees,Training Exp's (Facilitators),BLITHFIELD SAFETY TRAINING,26/07/2012, 833.00 
Customer & People Services,Organisational Improvement,NOAT,Employees,Training Exp's (Facilitators),BLITHFIELD SAFETY TRAINING,26/07/2012, 546.00 
Customer & People Services,Organisational Improvement,NOAT,Employees,Training Exp's (Facilitators),BLITHFIELD SAFETY TRAINING,26/07/2012, 950.00 
Customer & People Services,Organisational Improvement,NOAT,Employees,Training Exp's (Facilitators),BLITHFIELD SAFETY TRAINING,26/07/2012, 950.00 
Customer & People Services,Organisational Improvement,NOAT,Employees,Training Exp's (Facilitators),REDACTED PERSONAL INFORMATION,11/07/2012, 700.00 
Customer & People Services,Organisational Improvement,NOAT,Employees,Training Exp's (Facilitators),REDACTED PERSONAL INFORMATION,11/07/2012, 700.00 
Customer & People Services,Organisational Improvement,NOAT,Employees,Training Exp's (Facilitators),SEFAT CONSULTANCY SERVICES,11/07/2012," 1,099.81 "
Customer & People Services,Organisational Improvement,NOAT,Employees,Training Exp's (Facilitators),RGT TRAINING & CONSULTANCY,13/07/2012," 1,300.00 "
Customer & People Services,Organisational Improvement,NOAT,Employees,Training Exp's (Facilitators),ELEARVATION,11/07/2012, 798.00 
Customer & People Services,Organisational Improvement,NOAT,Employees,Other Training,HI-IMPACT LIMITED,06/07/2012," 1,000.00 "
Customer & People Services,Revenues,LRTA,Supplies & Services,Postages,ROYAL MAIL GROUP LTD,24/07/2012," 3,123.23 "
Customer & People Services,Revenues,LRTA,Supplies & Services,Postages,ROYAL MAIL GROUP LTD,18/07/2012," 1,935.59 "
Customer & People Services,Revenues,LRTA,Supplies & Services,Postages,ROYAL MAIL GROUP LTD,03/07/2012," 3,845.69 "
Customer & People Services,Revenues,LRTA,Third Party Payments,Scanning Services,NORTHGATE INFORMATION SOLUTIONS UK LTD,18/07/2012," 15,000.00 "
Customer & People Services,Revenues,LRTC,Employees,Off site Processing,NORTHGATE INFORMATION SOLUTIONS UK LTD,11/07/2012," 5,449.84 "
Customer & People Services,Revenues,LRTC,Supplies & Services,Off site Processing,NORTHGATE INFORMATION SOLUTIONS UK LTD,11/07/2012," 5,320.38 "
Customer & People Services,Revenues,LRTD,Supplies & Services,Subscription to National Anti Fraud Network,TAMESIDE MBC,31/07/2012," 2,647.00 "
Customer & People Services,Superintendent Registrar,LSAB,Premises-Related Expenditure,Grounds Maintenance - Cemeteries,P & W MAINTENANCE CONTRACTING LTD,25/07/2012," 2,630.51 "
Customer & People Services,Superintendent Registrar,LSAB,Premises-Related Expenditure,Grounds Maintenance - Cemeteries,P & W MAINTENANCE CONTRACTING LTD,25/07/2012," 1,785.34 "
Customer & People Services,Superintendent Registrar,LSAB,Premises-Related Expenditure,Grounds Maintenance - Cemeteries,P & W MAINTENANCE CONTRACTING LTD,04/07/2012," 1,425.00 "
Customer & People Services,Superintendent Registrar,LSAB,Premises-Related Expenditure,Grounds Maintenance - Cemeteries,P & W MAINTENANCE CONTRACTING LTD,04/07/2012," 3,158.60 "
Customer & People Services,Superintendent Registrar,LSAB,Premises-Related Expenditure,Grounds Maintenance - Cemeteries,P & W MAINTENANCE CONTRACTING LTD,25/07/2012," 3,452.96 "
"Development, Business & Housing","AD - Development, Business & Housing",WCAK,Capital Expenditure,Payments to Contractor,SIGNS EXPRESS (TELFORD),03/07/2012, 947.00 
"Development, Business & Housing","AD - Development, Business & Housing",WCAN,Capital Expenditure,Land Purchase,THE WREKIN HOUSING TRUST,31/07/2012," 21,000.00 "
"Development, Business & Housing","AD - Development, Business & Housing",WCAN,Capital Expenditure,Payments to Contractor,,24/07/2012, 729.39 
"Development, Business & Housing","AD - Development, Business & Housing",WCAN,Capital Expenditure,Payments to Contractor,VPS (UK) LTD,13/07/2012," 1,022.00 "
"Development, Business & Housing","AD - Development, Business & Housing",WCAN,Capital Expenditure,Payments to Contractor,VPS (UK) LTD,30/07/2012, 766.50 
"Development, Business & Housing",Building Schools for the Future (BSF),WGAC,Capital Expenditure,Legal Fees,WARD HADAWAY SOLICITORS,24/07/2012," 2,097.50 "
"Development, Business & Housing",Building Schools for the Future (BSF),WGAD,Capital Expenditure,External Professional Fees,MOTT MACDONALD LIMITED,17/07/2012," 5,173.94 "
"Development, Business & Housing",Building Schools for the Future (BSF),WGAD,Capital Expenditure,External Professional Fees,MOTT MACDONALD LIMITED,17/07/2012," 2,231.26 "
"Development, Business & Housing",Building Schools for the Future (BSF),WGAD,Capital Expenditure,External Professional Fees,MOTT MACDONALD LIMITED,17/07/2012," 1,476.74 "
"Development, Business & Housing",Building Schools for the Future (BSF),WGAD,Capital Expenditure,External Professional Fees,MOTT MACDONALD LIMITED,06/07/2012," 2,139.46 "
"Development, Business & Housing",Building Schools for the Future (BSF),WGAD,Capital Expenditure,External Professional Fees,MOTT MACDONALD LIMITED,06/07/2012," 19,721.73 "
"Development, Business & Housing",Building Schools for the Future (BSF),WGAD,Capital Expenditure,Payments to Contractor,RAINBOW INTERNATIONAL CARPET CLEANING CO,04/07/2012, 800.00 
"Development, Business & Housing",Building Schools for the Future (BSF),WGAD,Capital Expenditure,Payments to Contractor,KIER CONSTRUCTION LTD,25/07/2012," 1,104,972.00 "
"Development, Business & Housing",Building Schools for the Future (BSF),WGAE,Capital Expenditure,External Professional Fees,MOTT MACDONALD LIMITED,09/07/2012," 18,041.29 "
"Development, Business & Housing",Building Schools for the Future (BSF),WGAE,Capital Expenditure,External Professional Fees,MOTT MACDONALD LIMITED,09/07/2012," 28,203.61 "
"Development, Business & Housing",Building Schools for the Future (BSF),WGAE,Capital Expenditure,Payments to Contractor,MOTT MACDONALD LIMITED,17/07/2012," 3,989.45 "
"Development, Business & Housing",Building Schools for the Future (BSF),WGAG,Capital Expenditure,External Professional Fees,MOTT MACDONALD LIMITED,17/07/2012," 3,244.49 "
"Development, Business & Housing",Building Schools for the Future (BSF),WGAG,Capital Expenditure,Payments to Contractor,KIER CONSTRUCTION LTD,25/07/2012," 713,228.63 "
"Development, Business & Housing",Building Schools for the Future (BSF),WGAG,Capital Expenditure,Payments to Contractor,BRITISH GAS BUSINESS (ELECTRICITY),25/07/2012, 724.99 
"Development, Business & Housing",Building Schools for the Future (BSF),WGAG,Capital Expenditure,Payments to Contractor,SEVERN TRENT WATER LTD,26/07/2012," 3,989.86 "
"Development, Business & Housing",Building Schools for the Future (BSF),WGAJ,Capital Expenditure,Legal Fees,WARD HADAWAY SOLICITORS,16/07/2012," 7,156.40 "
"Development, Business & Housing",Building Schools for the Future (BSF),WGAJ,Capital Expenditure,Legal Fees,WARD HADAWAY SOLICITORS,11/07/2012," 7,194.06 "
"Development, Business & Housing",Building Schools for the Future (BSF),WGAJ,Capital Expenditure,External Professional Fees,MOTT MACDONALD LIMITED,17/07/2012," 6,544.50 "
"Development, Business & Housing",Building Schools for the Future (BSF),WGAJ,Capital Expenditure,External Professional Fees,MOTT MACDONALD LIMITED,11/07/2012," 1,470.89 "
"Development, Business & Housing",Building Schools for the Future (BSF),WGAJ,Capital Expenditure,External Professional Fees,MOTT MACDONALD LIMITED,06/07/2012," 6,658.42 "
"Development, Business & Housing",Building Schools for the Future (BSF),WGAJ,Capital Expenditure,External Professional Fees,MOTT MACDONALD LIMITED,19/07/2012,"-1,765.07 "
"Development, Business & Housing",Building Schools for the Future (BSF),WGAJ,Capital Expenditure,External Professional Fees,MOTT MACDONALD LIMITED,11/07/2012," 11,003.93 "
"Development, Business & Housing",Building Schools for the Future (BSF),WGAJ,Capital Expenditure,External Professional Fees,MOTT MACDONALD LIMITED,11/07/2012," 3,708.00 "
"Development, Business & Housing",Building Schools for the Future (BSF),WGAJ,Capital Expenditure,External Professional Fees,MOTT MACDONALD LIMITED,11/07/2012," 1,470.89 "
"Development, Business & Housing",Building Schools for the Future (BSF),WGAJ,Capital Expenditure,Site Investigation,GROUND INVESTIGATION & PILING LTD,09/07/2012," 8,248.00 "
"Development, Business & Housing",Building Schools for the Future (BSF),WGAK,Capital Expenditure,External Professional Fees,MOTT MACDONALD LIMITED,09/07/2012," 11,820.20 "
"Development, Business & Housing",Building Schools for the Future (BSF),WGAK,Capital Expenditure,Payments to Contractor,MOTT MACDONALD LIMITED,17/07/2012," 3,444.89 "
"Development, Business & Housing",Building Schools for the Future (BSF),WGAL,Capital Expenditure,External Professional Fees,MOTT MACDONALD LIMITED,09/07/2012," 20,392.83 "
"Development, Business & Housing",Building Schools for the Future (BSF),WGAL,Capital Expenditure,External Professional Fees,MOTT MACDONALD LIMITED,09/07/2012," 23,091.94 "
"Development, Business & Housing",Building Schools for the Future (BSF),WGAL,Capital Expenditure,External Professional Fees,MOTT MACDONALD LIMITED,09/07/2012," 11,586.45 "
"Development, Business & Housing",Building Schools for the Future (BSF),WGAL,Capital Expenditure,Payments to Contractor,MOTT MACDONALD LIMITED,17/07/2012," 3,569.59 "
"Development, Business & Housing",Building Schools for the Future (BSF),WGAT,Capital Expenditure,Payments to Contractor,KIER CONSTRUCTION LTD,25/07/2012," 90,608.00 "
"Development, Business & Housing",Capital and Facilities Management,CFAA,Premises-Related Expenditure,Grounds Maintenance - Other,NOBRIDGE LTD,11/07/2012," 2,776.18 "
"Development, Business & Housing",Capital and Facilities Management,CFAA,Premises-Related Expenditure,Grounds Maintenance - Other,NOBRIDGE LTD,11/07/2012," 2,776.18 "
"Development, Business & Housing",Capital and Facilities Management,CFAB,Transport-Related Expenditure,Licences,THE COPYRIGHT LICENSING AGENCY LTD,04/07/2012," 25,134.33 "
"Development, Business & Housing",Capital and Facilities Management,CFAB,Transport-Related Expenditure,Licences,PVSL,11/07/2012," 7,399.00 "
"Development, Business & Housing",Capital and Facilities Management,CFAB,Transport-Related Expenditure,Licences,CENTRE FOR EDUCATION&FINANCE MANAGEMENT,11/07/2012," 6,783.83 "
"Development, Business & Housing",Capital and Facilities Management,CFAB,Transport-Related Expenditure,Licences,CENTRE FOR EDUCATION&FINANCE MANAGEMENT,11/07/2012," 6,276.14 "
"Development, Business & Housing",Capital and Facilities Management,CFAD,Supplies & Services,Security Services,BUSINESS WATCH GUARDING LIMITED,04/07/2012," 17,719.35 "
"Development, Business & Housing",Capital and Facilities Management,CFAD,Supplies & Services,Security Services,BUSINESS WATCH GUARDING LIMITED,18/07/2012," 18,294.69 "
"Development, Business & Housing",Capital and Facilities Management,CFAK,Premises-Related Expenditure,Water Rates,SEVERN TRENT WATER LTD,07/07/2012, 634.30 
"Development, Business & Housing",Capital and Facilities Management,CFAS,Premises-Related Expenditure,Clean Mats & Toilet Requisites,MAIN MAN SUPPLIES LTD,18/07/2012," 1,467.50 "
"Development, Business & Housing",Capital and Facilities Management,CFAS,Premises-Related Expenditure,Clean Mats & Toilet Requisites,WEST MERCIA SUPPLIES Catalogue Supplies (None Utility),30/07/2012," 2,419.18 "
"Development, Business & Housing",Capital and Facilities Management,CFAS,Premises-Related Expenditure,Clean Mats & Toilet Requisites,WEST MERCIA SUPPLIES Catalogue Supplies (None Utility),07/07/2012," 1,948.03 "
"Development, Business & Housing",Capital and Facilities Management,CFAS,Premises-Related Expenditure,Clean Mats & Toilet Requisites,WEST MERCIA SUPPLIES Catalogue Supplies (None Utility),07/07/2012," 2,986.02 "
"Development, Business & Housing",Capital and Facilities Management,CFAS,Premises-Related Expenditure,Clean Mats & Toilet Requisites,WEST MERCIA SUPPLIES Catalogue Supplies (None Utility),30/07/2012," 2,796.79 "
"Development, Business & Housing",Capital and Facilities Management,CFAS,Premises-Related Expenditure,Clean Mats & Toilet Requisites,WEST MERCIA SUPPLIES Catalogue Supplies (None Utility),31/07/2012," 2,620.46 "
"Development, Business & Housing",Capital and Facilities Management,CFAS,Premises-Related Expenditure,Contract Cleaning,CLEANIT CLEANING SERVICES,18/07/2012, 677.25 
"Development, Business & Housing",Capital and Facilities Management,CFAS,Premises-Related Expenditure,Contract Cleaning,CLEANIT CLEANING SERVICES,07/07/2012, 677.25 
"Development, Business & Housing",Capital and Facilities Management,CFAS,Premises-Related Expenditure,Contract Cleaning,CLEANIT CLEANING SERVICES,07/07/2012, 677.25 
"Development, Business & Housing",Capital and Facilities Management,CFAS,Premises-Related Expenditure,Contract Cleaning,CLEANIT CLEANING SERVICES,07/07/2012, 677.25 
"Development, Business & Housing",Capital and Facilities Management,CFAS,Premises-Related Expenditure,Contract Cleaning,CLEANIT CLEANING SERVICES,07/07/2012, 677.25 
"Development, Business & Housing",Capital and Facilities Management,CFAS,Premises-Related Expenditure,Contract Cleaning,CLEANIT CLEANING SERVICES,07/07/2012, 677.25 
"Development, Business & Housing",Capital and Facilities Management,CFAS,Premises-Related Expenditure,Contract Cleaning,CLEANIT CLEANING SERVICES,04/07/2012, 677.25 
"Development, Business & Housing",Capital and Facilities Management,CFAS,Premises-Related Expenditure,Contract Cleaning,CLEANIT CLEANING SERVICES,04/07/2012, 677.25 
"Development, Business & Housing",Capital and Facilities Management,CFAS,Premises-Related Expenditure,Contract Cleaning,CLEANIT CLEANING SERVICES,04/07/2012, 677.25 
"Development, Business & Housing",Capital and Facilities Management,CFAS,Premises-Related Expenditure,Contract Cleaning,CLEANIT CLEANING SERVICES,04/07/2012, 677.25 
"Development, Business & Housing",Capital and Facilities Management,CFAS,Premises-Related Expenditure,Contract Cleaning,CLEANIT CLEANING SERVICES,11/07/2012, 677.25 
"Development, Business & Housing",Capital and Facilities Management,CFAS,Supplies & Services,Equipment - Purchase,A3 MACHINES LIMITED,04/07/2012," 1,697.00 "
"Development, Business & Housing",Capital and Facilities Management,CFAS,Supplies & Services,Equipment - Repair,A3 MACHINES LIMITED,31/07/2012, 540.75 
"Development, Business & Housing",Capital and Facilities Management,CFAV,Capital Financing Costs,Unitary Charge,PYRAMID SCHOOLS (HADLEY) LTD,25/07/2012," 790,964.85 "
"Development, Business & Housing",Capital and Facilities Management,CFAV,Capital Financing Costs,Construction EWoC � Facilities Management Charge,PYRAMID SCHOOLS (HADLEY) LTD,25/07/2012," 1,277.22 "
"Development, Business & Housing",Capital and Facilities Management,CFAV,Capital Financing Costs,Construction EWoC � Facilities Management Charge,PYRAMID SCHOOLS (HADLEY) LTD,11/07/2012, 839.49 
"Development, Business & Housing",Capital and Facilities Management,EWAM,Supplies & Services,Other Expenses,Department of Energy and Climate Change,25/07/2012," 240,000.00 "
"Development, Business & Housing",Development Management,DDAA,Supplies & Services,Comp Hardware (Purch / Hire),RESOLUTION DATA MANAGEMENT LTD,18/07/2012," 5,455.72 "
"Development, Business & Housing",Development Management,DDAA,Supplies & Services,Comp Hardware (Purch / Hire),RESOLUTION DATA MANAGEMENT LTD,25/07/2012," 1,015.40 "
"Development, Business & Housing",Development Management,DDAC,Supplies & Services,Consultancy,MARTIN ROBESON & PARTNERS LTD,03/07/2012," 10,000.00 "
"Development, Business & Housing",Development Management,DDAC,Supplies & Services,Consultancy,NO 5 CHAMBERS LIMITED,10/07/2012," 12,300.00 "
"Development, Business & Housing",Development Management,DDAC,Supplies & Services,Consultancy,WHITE YOUNG GREEN CONSULTING LTD,10/07/2012," 12,600.00 "
"Development, Business & Housing",Development Management,DDAC,Supplies & Services,Consultancy,WHITE YOUNG GREEN CONSULTING LTD,10/07/2012," 32,355.16 "
"Development, Business & Housing",Development Management,DDAC,Supplies & Services,Other Expenses,GRAYS HOTEL LTD,25/07/2012," 3,308.38 "
"Development, Business & Housing",Development Management,DDAC,Supplies & Services,Consultancy,Sharps Redmore Partnership Ltd,21/07/2012," 1,050.00 "
"Development, Business & Housing",Development Management,DDAC,Supplies & Services,Consultancy,MARTIN ROBESON & PARTNERS LTD,26/07/2012," 10,000.00 "
"Development, Business & Housing",Development Management,DDAG,Supplies & Services,Photocopying,DATASAVE LIMITED,03/07/2012, 871.68 
"Development, Business & Housing",Enterprise & Employment,AEAR,Supplies & Services,Equipment - Purchase,TELFORD COLLEGE OF ARTS & TECHNOLOGY,09/07/2012," 2,123.10 "
"Development, Business & Housing",Enterprise & Employment,CEAB,Premises-Related Expenditure,Other,JOHN G RUSSELL (TRANSPORT) LTD,11/07/2012," 2,250.00 "
"Development, Business & Housing",Enterprise & Employment,CEAB,Premises-Related Expenditure,Other,JOHN G RUSSELL (TRANSPORT) LTD,11/07/2012," 2,250.00 "
"Development, Business & Housing",Enterprise & Employment,CEAB,Premises-Related Expenditure,Other,JOHN G RUSSELL (TRANSPORT) LTD,11/07/2012," 2,250.00 "
"Development, Business & Housing",Enterprise & Employment,CEAB,Premises-Related Expenditure,Building Cleaning DSO,JOHN G RUSSELL (TRANSPORT) LTD,11/07/2012," 2,250.00 "
"Development, Business & Housing",Enterprise & Employment,CEAB,Premises-Related Expenditure,Building Cleaning DSO,JOHN G RUSSELL (TRANSPORT) LTD,09/07/2012," 2,250.00 "
"Development, Business & Housing",Estates & Investments,CEAC,Premises-Related Expenditure,R&M -Buildings DLO Charge,COFELY LIMITED,10/07/2012," 1,828.99 "
"Development, Business & Housing",Estates & Investments,CEAC,Premises-Related Expenditure,Electricity,West Mercia Energy (WME),18/07/2012, 747.25 
"Development, Business & Housing",Estates & Investments,CEAC,Premises-Related Expenditure,Electricity,West Mercia Energy (WME),18/07/2012," 1,007.76 "
"Development, Business & Housing",Estates & Investments,CEAC,Premises-Related Expenditure,Gas,TOTAL GAS & POWER LIMITED,24/07/2012," 1,894.03 "
"Development, Business & Housing",Estates & Investments,CEAC,Premises-Related Expenditure,Gas,TOTAL GAS & POWER LIMITED,26/07/2012," 2,111.70 "
"Development, Business & Housing",Estates & Investments,CEAC,Premises-Related Expenditure,Clean Mats & Toilet Requisites,INITIAL WASHROOM SOLUTIONS,24/07/2012," 1,238.43 "
"Development, Business & Housing",Estates & Investments,CEAC,Supplies & Services,Security Services,BUSINESS WATCH GUARDING LIMITED,26/07/2012," 1,981.19 "
"Development, Business & Housing",Estates & Investments,CEAD,Premises-Related Expenditure,Electricity,West Mercia Energy (WME),18/07/2012," 1,661.85 "
"Development, Business & Housing",Estates & Investments,CEAD,Premises-Related Expenditure,Electricity,West Mercia Energy (WME),18/07/2012," 1,655.88 "
"Development, Business & Housing",Estates & Investments,CEAE,Premises-Related Expenditure,Electricity,West Mercia Energy (WME),11/07/2012, 597.78 
"Development, Business & Housing",Estates & Investments,CEAE,Premises-Related Expenditure,Electricity,West Mercia Energy (WME),11/07/2012, 541.64 
"Development, Business & Housing",Estates & Investments,CEAE,Premises-Related Expenditure,Gas,West Mercia Energy (WME),11/07/2012," 1,516.72 "
"Development, Business & Housing",Estates & Investments,CEAE,Premises-Related Expenditure,Water Rates,SEVERN TRENT WATER LTD,02/07/2012," 1,322.51 "
"Development, Business & Housing",Estates & Investments,CEAE,Supplies & Services,Security Services,BUSINESS WATCH GUARDING LIMITED,26/07/2012," 1,881.00 "
"Development, Business & Housing",Estates & Investments,CEAE,Supplies & Services,Telephones,MIDLAND TML,26/07/2012, 548.47 
"Development, Business & Housing",Estates & Investments,CEAH,Premises-Related Expenditure,Dilapidations,WREKIN FARMERS LTD,20/07/2012," 16,852.50 "
"Development, Business & Housing",Estates & Investments,CEAH,Premises-Related Expenditure,R&M -Buildings DLO Charge,WINDOW & DOOR CONTRACT SERVICES,11/07/2012," 1,093.94 "
"Development, Business & Housing",Estates & Investments,CEAH,Premises-Related Expenditure,R&M -Buildings DLO Charge,JONES & HAMPTON LTD,13/07/2012, 590.43 
"Development, Business & Housing",Estates & Investments,CEAH,Premises-Related Expenditure,R&M -Building Other,FINNIGAN & HARPER LIMITED,18/07/2012, 890.00 
"Development, Business & Housing",Estates & Investments,CEAH,Premises-Related Expenditure,R&M -Building Other,BRINDLEY ASPHALT LIMITED,18/07/2012," 6,665.00 "
"Development, Business & Housing",Estates & Investments,CEAH,Premises-Related Expenditure,R&M -Building Other,JONES & HAMPTON LTD,16/07/2012," 2,213.54 "
"Development, Business & Housing",Estates & Investments,CEAH,Premises-Related Expenditure,R&M -Building Other,DOOR LOADING SERVICES UK LTD,11/07/2012, 850.00 
"Development, Business & Housing",Estates & Investments,CEAH,Premises-Related Expenditure,Electricity,SHROPSHIRE HEATING SERVICES LTD,26/07/2012, 651.00 
"Development, Business & Housing",Estates & Investments,CEAH,Premises-Related Expenditure,Electricity,SCOTTISH & SOUTHERN ENERGY,11/07/2012, 586.29 
"Development, Business & Housing",Estates & Investments,CEAH,Premises-Related Expenditure,Electricity,NPOWER BUSINESS,25/07/2012, 796.03 
"Development, Business & Housing",Estates & Investments,CEAH,Premises-Related Expenditure,Electricity,GRA-BERN,25/07/2012, 580.40 
"Development, Business & Housing",Estates & Investments,CEAH,Premises-Related Expenditure,Electricity,NPOWER LIMITED,09/07/2012, 621.59 
"Development, Business & Housing",Estates & Investments,CEAH,Premises-Related Expenditure,Electricity,NPOWER LIMITED,24/07/2012, 584.04 
"Development, Business & Housing",Estates & Investments,CEAH,Premises-Related Expenditure,Water Rates,SEVERN TRENT WATER LTD,25/07/2012," 15,551.01 "
"Development, Business & Housing",Estates & Investments,CEAH,Premises-Related Expenditure,Grounds Maintenance - L&CS,R M F LANDSCAPING LTD,25/07/2012," 4,543.10 "
"Development, Business & Housing",Estates & Investments,CEAJ,Third Party Payments,Voluntary Bodies,SEVERN GORGE COUNTRYSIDE TRUST,25/07/2012," 45,327.33 "
"Development, Business & Housing",Estates & Investments,CEAN,Premises-Related Expenditure,R&M -Buildings DLO Charge,PP ELECTRICAL SERVICES,25/07/2012, 756.00 
"Development, Business & Housing",Estates & Investments,CEAN,Premises-Related Expenditure,R&M -Building Other,JONES & HAMPTON LTD,10/07/2012," 1,054.38 "
"Development, Business & Housing",Estates & Investments,CEAN,Premises-Related Expenditure,Electricity,SOUTHERN ELECTRIC,17/07/2012," 2,234.60 "
"Development, Business & Housing",Estates & Investments,CEAN,Premises-Related Expenditure,Electricity,SCOTTISH & SOUTHERN ENERGY,18/07/2012, 698.24 
"Development, Business & Housing",Estates & Investments,CEAN,Premises-Related Expenditure,Electricity,West Mercia Energy (WME),04/07/2012, 523.19 
"Development, Business & Housing",Estates & Investments,CEAN,Premises-Related Expenditure,Electricity,NPOWER LIMITED,24/07/2012," 2,249.15 "
"Development, Business & Housing",Estates & Investments,CEAN,Premises-Related Expenditure,Gas,E.ON,18/07/2012, 601.36 
"Development, Business & Housing",Estates & Investments,CEAN,Premises-Related Expenditure,Building Cleaning DSO,CANNON HYGIENE LTD,31/07/2012,"-1,278.15 "
"Development, Business & Housing",Estates & Investments,CEAN,Supplies & Services,Telephones,MIDLAND TML,02/07/2012, 544.21 
"Development, Business & Housing",Estates & Investments,WGNE,Capital Expenditure,External Professional Fees,NO 5 CHAMBERS LIMITED,24/07/2012," 40,437.50 "
"Development, Business & Housing",Estates & Investments,WGNE,Capital Expenditure,External Professional Fees,RPS DESIGN LTD,06/07/2012," 1,048.75 "
"Development, Business & Housing",Estates & Investments,WGNE,Capital Expenditure,External Professional Fees,RPS DESIGN LTD,06/07/2012," 8,240.62 "
"Development, Business & Housing",Estates & Investments,WGNE,Capital Expenditure,External Professional Fees,RPS DESIGN LTD,23/07/2012," 3,151.87 "
"Development, Business & Housing",Estates & Investments,WGNE,Capital Expenditure,External Professional Fees,RPS DESIGN LTD,23/07/2012, 801.67 
"Development, Business & Housing",Estates & Investments,WGNE,Capital Expenditure,External Professional Fees,PHIL JONES ASSOCIATES LTD,26/07/2012," 6,750.00 "
"Development, Business & Housing",Estates & Investments,WGNE,Capital Expenditure,External Professional Fees,PHIL JONES ASSOCIATES LTD,05/07/2012," 1,995.00 "
"Development, Business & Housing",Estates & Investments,WGNE,Capital Expenditure,External Professional Fees,MARTIN ROBESON & PARTNERS LTD,05/07/2012," 4,500.00 "
"Development, Business & Housing",Estates & Investments,WGNE,Capital Expenditure,External Professional Fees,REDACTED PERSONAL INFORMATION,05/07/2012," 3,250.00 "
"Development, Business & Housing",Estates & Investments,WGNE,Capital Expenditure,Payments to Contractor,RODGERS LEASK ENVIRONMENTAL LTD,26/07/2012," 1,555.00 "
"Development, Business & Housing",Estates & Investments,WGNE,Capital Expenditure,Payments to Contractor,RODGERS LEASK ENVIRONMENTAL LTD,05/07/2012," 1,555.00 "
"Development, Business & Housing",Operational Property,CAAG,Supplies & Services,Consultants Fees,OLIVEJOYCE LTD,25/07/2012," 1,820.00 "
"Development, Business & Housing",Operational Property,CAAH,Premises-Related Expenditure,R&M -Buildings DLO Charge,SHROPSHIRE HEATING SERVICES LTD,13/07/2012," 1,202.25 "
"Development, Business & Housing",Operational Property,CAAH,Premises-Related Expenditure,R&M -Buildings DLO Charge,SHROPSHIRE HEATING SERVICES LTD,13/07/2012, 723.10 
"Development, Business & Housing",Operational Property,CAAH,Premises-Related Expenditure,R&M -Buildings DLO Charge,GRANVILLE CONSTRUCTION & MAINTENANCE LTD,13/07/2012," 1,087.50 "
"Development, Business & Housing",Operational Property,CAAH,Premises-Related Expenditure,R&M -Buildings DLO Charge,TELFORD & WREKIN SERVICES LTD,16/07/2012, 945.00 
"Development, Business & Housing",Operational Property,CAAH,Premises-Related Expenditure,R&M -Buildings DLO Charge,ADT FIRE & SECURITY PLC,23/07/2012, 619.00 
"Development, Business & Housing",Operational Property,CAAH,Premises-Related Expenditure,R&M -Buildings DLO Charge,ADT FIRE & SECURITY PLC,23/07/2012, 845.00 
"Development, Business & Housing",Operational Property,CAAH,Premises-Related Expenditure,R&M -Buildings DLO Charge,G LEDDINGTON (ELECTRICAL) LTD,23/07/2012, 938.20 
"Development, Business & Housing",Operational Property,CAAH,Premises-Related Expenditure,R&M -Buildings DLO Charge,PP ELECTRICAL SERVICES,23/07/2012, 515.08 
"Development, Business & Housing",Operational Property,CAAH,Premises-Related Expenditure,R&M -Buildings DLO Charge,JCE & SONS LTD,24/07/2012," 1,365.00 "
"Development, Business & Housing",Operational Property,CAAH,Premises-Related Expenditure,R&M -Buildings DLO Charge,WATERCLEAN SERVICES LTD,23/07/2012, 750.00 
"Development, Business & Housing",Operational Property,CAAH,Premises-Related Expenditure,R&M -Buildings DLO Charge,TAYLORS MECHANICAL H & P SERVICES LTD,26/07/2012," 1,137.50 "
"Development, Business & Housing",Operational Property,CAAH,Premises-Related Expenditure,R&M -Buildings DLO Charge,MICHAEL W TART DECORATOR,25/07/2012," 2,298.00 "
"Development, Business & Housing",Operational Property,CAAH,Premises-Related Expenditure,R&M -Buildings DLO Charge,CHUBB FIRE LIMITED,25/07/2012, 554.99 
"Development, Business & Housing",Operational Property,CAAH,Premises-Related Expenditure,R&M -Buildings DLO Charge,LOCSAFE SECURITY SYSTEMS,04/07/2012, 651.00 
"Development, Business & Housing",Operational Property,CAAH,Premises-Related Expenditure,R&M -Buildings DLO Charge,SECURITY WISE LTD,23/07/2012, 541.00 
"Development, Business & Housing",Operational Property,CAAH,Premises-Related Expenditure,R&M -Buildings DLO Charge,WATERCLEAN SERVICES LTD,23/07/2012, 600.00 
"Development, Business & Housing",Operational Property,CAAH,Premises-Related Expenditure,R&M -Buildings DLO Charge,WATERCLEAN SERVICES LTD,23/07/2012, 750.00 
"Development, Business & Housing",Operational Property,CAAH,Premises-Related Expenditure,R&M -Buildings DLO Charge,PP ELECTRICAL SERVICES,03/07/2012, 865.00 
"Development, Business & Housing",Operational Property,CAAH,Premises-Related Expenditure,R&M -Buildings DLO Charge,CHUBB FIRE LIMITED,03/07/2012, 528.48 
"Development, Business & Housing",Operational Property,CAAH,Premises-Related Expenditure,R&M -Buildings DLO Charge,JONES & HAMPTON LTD,25/07/2012, 672.00 
"Development, Business & Housing",Operational Property,COAE,Premises-Related Expenditure,R&M -Buildings DLO Charge,TELFORD & WREKIN SERVICES LTD,10/07/2012," 2,742.11 "
"Development, Business & Housing",Operational Property,COAE,Premises-Related Expenditure,R&M -Buildings DLO Charge,SHIRES FIRE AND SAFETY LTD,23/07/2012, 733.61 
"Development, Business & Housing",Operational Property,COAE,Premises-Related Expenditure,Electricity,West Mercia Energy (WME),26/07/2012," 1,723.28 "
"Development, Business & Housing",Operational Property,COAE,Premises-Related Expenditure,Electricity,West Mercia Energy (WME),09/07/2012, 830.20 
"Development, Business & Housing",Operational Property,COAE,Premises-Related Expenditure,Electricity,West Mercia Energy (WME),02/07/2012," 1,151.15 "
"Development, Business & Housing",Operational Property,COAE,Premises-Related Expenditure,Gas,West Mercia Energy (WME),31/07/2012," 1,260.78 "
"Development, Business & Housing",Operational Property,COAE,Premises-Related Expenditure,Window Cleaning,West Mercia Energy (WME),26/07/2012, 645.19 
"Development, Business & Housing",Operational Property,COAE,Premises-Related Expenditure,Window Cleaning,West Mercia Energy (WME),26/07/2012," 1,162.01 "
"Development, Business & Housing",Operational Property,COAE,Premises-Related Expenditure,Window Cleaning,West Mercia Energy (WME),26/07/2012," 10,346.33 "
"Development, Business & Housing",Operational Property,COAG,Premises-Related Expenditure,R&M -SCC Planned,CONCEPT ELEVATORS (MIDLANDS) LIMITED,11/07/2012," 1,486.79 "
"Development, Business & Housing",Operational Property,COAG,Premises-Related Expenditure,R&M WC Planned,WINDOW & DOOR CONTRACT SERVICES,12/07/2012, 520.44 
"Development, Business & Housing",Operational Property,COAG,Premises-Related Expenditure,R&M WC Contingency,PP ELECTRICAL SERVICES,19/07/2012, 525.72 
"Development, Business & Housing",Operational Property,COAG,Premises-Related Expenditure,R&M Fixed Plant Other,GRA-BERN,12/07/2012, 609.76 
"Development, Business & Housing",Operational Property,COAG,Premises-Related Expenditure,R&M Fixed Plant Other,ERIC NEVILLE CATERING SUPPLIES LTD,12/07/2012," 1,018.00 "
"Development, Business & Housing",Operational Property,COAG,Premises-Related Expenditure,R&M Fixed Plant Other,GRA-BERN,12/07/2012, 540.71 
"Development, Business & Housing",Operational Property,COAH,Premises-Related Expenditure,Electricity,BRITISH GAS BUSINESS,07/07/2012," 1,061.71 "
"Development, Business & Housing",Operational Property,COAH,Premises-Related Expenditure,Electricity,NPOWER,10/07/2012, 870.75 
"Development, Business & Housing",Operational Property,COAH,Premises-Related Expenditure,Gas,E.ON,30/07/2012," 4,172.63 "
"Development, Business & Housing",Operational Property,COAH,Premises-Related Expenditure,Water Rates,SEVERN TRENT WATER LTD,03/07/2012," 1,711.56 "
"Development, Business & Housing",Operational Property,COAH,Premises-Related Expenditure,Water Rates,SEVERN TRENT WATER LTD,31/07/2012," 1,930.74 "
"Development, Business & Housing",Operational Property,COAJ,Premises-Related Expenditure,Electricity,BRITISH GAS BUSINESS (ELECTRICITY),26/07/2012, 541.35 
"Development, Business & Housing",Operational Property,COAP,Premises-Related Expenditure,R&M -Buildings DLO Charge,HEATRITE SERVICES,13/07/2012," 1,620.77 "
"Development, Business & Housing",Operational Property,COAP,Premises-Related Expenditure,R&M -Buildings DLO Charge,JONES & HAMPTON LTD,11/07/2012, 882.08 
"Development, Business & Housing",Operational Property,COAP,Premises-Related Expenditure,R&M -Buildings DLO Charge,Rio Asphalt & Paving Co Ltd,11/07/2012, 626.00 
"Development, Business & Housing",Operational Property,COAP,Premises-Related Expenditure,R&M -Building Other,JONES & HAMPTON LTD,11/07/2012," 8,879.00 "
"Development, Business & Housing",Operational Property,COAP,Premises-Related Expenditure,Gas,Dong Energy Sales (UK) Ltd,11/07/2012," 1,497.34 "
"Development, Business & Housing",Operational Property,WCAY,Capital Expenditure,Payments to Contractor,THE MOBILE BASE COMPANY (SHROPSHIRE) LTD,13/07/2012," 3,120.00 "
"Development, Business & Housing",Operational Property,WCAY,Capital Expenditure,Payments to Contractor,GRANVILLE CONSTRUCTION & MAINTENANCE LTD,13/07/2012," 10,346.81 "
"Development, Business & Housing",Operational Property,WCAY,Capital Expenditure,Payments to Contractor,GRANVILLE CONSTRUCTION & MAINTENANCE LTD,13/07/2012," 2,070.00 "
"Development, Business & Housing",Operational Property,WCAY,Capital Expenditure,Payments to Contractor,KRM CONTRACTORS LTD,02/07/2012," 21,057.72 "
"Development, Business & Housing",Operational Property,WCAY,Capital Expenditure,Payments to Contractor,KRM CONTRACTORS LTD,02/07/2012," 25,916.03 "
"Development, Business & Housing",Operational Property,WCAY,Capital Expenditure,Payments to Contractor,FINNIGAN & HARPER LIMITED,31/07/2012," 1,920.00 "
"Development, Business & Housing",Operational Property,WCAY,Capital Expenditure,Payments to Contractor,KRM CONTRACTORS LTD,27/07/2012," 19,196.08 "
"Development, Business & Housing",Operational Property,WCAY,Capital Expenditure,Payments to Contractor,KRM CONTRACTORS LTD,03/07/2012," 3,990.99 "
"Development, Business & Housing",Operational Property,WCAY,Capital Expenditure,Payments to Contractor,KRM CONTRACTORS LTD,03/07/2012," 10,178.03 "
"Development, Business & Housing",Operational Property,WCAY,Capital Expenditure,Payments to Contractor,KRM CONTRACTORS LTD,03/07/2012," 3,881.36 "
"Development, Business & Housing",Operational Property,WCAY,Capital Expenditure,Payments to Contractor,KRM CONTRACTORS LTD,03/07/2012," 16,431.56 "
"Development, Business & Housing",Operational Property,WCAY,Capital Expenditure,Payments to Contractor,KRM CONTRACTORS LTD,03/07/2012," 4,295.49 "
"Development, Business & Housing",Operational Property,WCAY,Capital Expenditure,Payments to Contractor,KRM CONTRACTORS LTD,03/07/2012," 1,798.49 "
"Development, Business & Housing",Operational Property,WCAY,Capital Expenditure,Payments to Contractor,KRM CONTRACTORS LTD,03/07/2012," 1,787.75 "
"Development, Business & Housing",Operational Property,WCAY,Capital Expenditure,Payments to Contractor,KRM CONTRACTORS LTD,03/07/2012," 8,924.84 "
"Development, Business & Housing",Operational Property,WCAY,Capital Expenditure,Payments to Contractor,KRM CONTRACTORS LTD,13/07/2012," 25,461.64 "
"Development, Business & Housing",Operational Property,WCAY,Capital Expenditure,Payments to Contractor,KRM CONTRACTORS LTD,27/07/2012," 2,744.26 "
"Development, Business & Housing",Operational Property,WCAY,Capital Expenditure,Payments to Contractor,DMW ENVIRONMENTAL SAFETY LTD,31/07/2012, 850.00 
"Development, Business & Housing",Operational Property,WCAY,Capital Expenditure,Payments to Contractor,FINNIGAN & HARPER LIMITED,31/07/2012," 9,562.00 "
"Development, Business & Housing",Operational Property,WCAY,Capital Expenditure,Payments to Contractor,KRM CONTRACTORS LTD,17/07/2012," 29,195.01 "
"Development, Business & Housing",Operational Property,WCAY,Capital Expenditure,Payments to Contractor,KRM CONTRACTORS LTD,17/07/2012," 39,952.80 "
"Development, Business & Housing",Operational Property,WCAY,Capital Expenditure,Payments to Contractor,THE MOBILE BASE COMPANY (SHROPSHIRE) LTD,27/07/2012," 1,600.00 "
"Development, Business & Housing",Operational Property,WCAY,Capital Expenditure,Payments to Contractor,THE MOBILE BASE COMPANY (SHROPSHIRE) LTD,27/07/2012," 2,986.00 "
"Development, Business & Housing",Operational Property,WCAY,Capital Expenditure,Payments to Contractor,THE MOBILE BASE COMPANY (SHROPSHIRE) LTD,27/07/2012," 1,500.00 "
"Development, Business & Housing",Operational Property,WCAY,Capital Expenditure,Payments to Contractor,KRM CONTRACTORS LTD,27/07/2012," 1,327.46 "
"Development, Business & Housing",Operational Property,WCAY,Capital Expenditure,Payments to Contractor,KRM CONTRACTORS LTD,27/07/2012," 11,378.25 "
"Development, Business & Housing",Operational Property,WCAY,Capital Expenditure,Payments to Contractor,KRM CONTRACTORS LTD,17/07/2012," 1,596.08 "
"Development, Business & Housing",Operational Property,WCAY,Capital Expenditure,Payments to Contractor,KRM CONTRACTORS LTD,27/07/2012," 39,820.95 "
"Development, Business & Housing",Operational Property,WCAY,Capital Expenditure,Payments to Contractor,KRM CONTRACTORS LTD,27/07/2012," 22,033.05 "
"Development, Business & Housing",Operational Property,WCAY,Capital Expenditure,Payments to Contractor,KRM CONTRACTORS LTD,27/07/2012, 708.49 
"Development, Business & Housing",Operational Property,WCAY,Capital Expenditure,Payments to Contractor,HARROW GREEN LIMITED,27/07/2012, 747.38 
"Development, Business & Housing",Operational Property,WCAY,Capital Expenditure,Payments to Contractor,PP ELECTRICAL SERVICES,27/07/2012," 1,476.00 "
"Development, Business & Housing",Operational Property,WCAY,Capital Expenditure,Payments to Contractor,HARROW GREEN LIMITED,27/07/2012," 1,310.47 "
"Development, Business & Housing",Operational Property,WCAY,Capital Expenditure,Fixtures & Fittings & Equipment,HARROW GREEN LIMITED,09/07/2012," 3,067.97 "
"Development, Business & Housing",Operational Property,WCAY,Capital Expenditure,Fixtures & Fittings & Equipment,AQUILA BUSINESS PRODUCTS LTD,09/07/2012," 2,028.70 "
"Development, Business & Housing",Operational Property,WCAY,Capital Expenditure,Fixtures & Fittings & Equipment,AQUILA BUSINESS PRODUCTS LTD,09/07/2012," 2,072.00 "
"Development, Business & Housing",Operational Property,WCAY,Capital Expenditure,Fixtures & Fittings & Equipment,AQUILA BUSINESS PRODUCTS LTD,09/07/2012," 7,252.00 "
"Development, Business & Housing",Operational Property,WCAY,Capital Expenditure,Fixtures & Fittings & Equipment,SENATOR INTERNATIONAL,03/07/2012, 850.00 
"Development, Business & Housing",Operational Property,WCAY,Capital Expenditure,Fixtures & Fittings & Equipment,SENATOR INTERNATIONAL,03/07/2012," 1,175.00 "
"Development, Business & Housing",Operational Property,WCAY,Capital Expenditure,Fixtures & Fittings & Equipment,SENATOR INTERNATIONAL,03/07/2012," 1,175.00 "
"Development, Business & Housing",Operational Property,WCAY,Capital Expenditure,Computer Hardware,SYNETRIX LTD,06/07/2012," 29,518.59 "
"Development, Business & Housing",Operational Property,WCAY,Capital Expenditure,Computer Hardware,SYNETRIX LTD,06/07/2012," 45,200.00 "
"Development, Business & Housing",Operational Property,WCAY,Capital Expenditure,Computer Hardware,SYNETRIX LTD,06/07/2012," 4,292.00 "
"Development, Business & Housing",Operational Property,WCAY,Capital Expenditure,Computer Hardware,SYNETRIX LTD,11/07/2012," 61,527.16 "
"Development, Business & Housing",Operational Property,WCAY,Capital Expenditure,Computer Hardware,SYNETRIX LTD,20/07/2012,"-45,200.00 "
"Development, Business & Housing",Operational Property,WCBA,Capital Expenditure,Payments to Contractor,PP ELECTRICAL SERVICES,24/07/2012," 2,500.00 "
"Development, Business & Housing",Operational Property,WCBA,Capital Expenditure,Payments to Contractor,SHROPSHIRE HEATING SERVICES LTD,19/07/2012," 1,339.16 "
"Development, Business & Housing",Operational Property,WCBA,Capital Expenditure,Payments to Contractor,GRANVILLE CONSTRUCTION & MAINTENANCE LTD,19/07/2012, 671.52 
"Development, Business & Housing",Operational Property,WCOA,Capital Expenditure,Payments to Contractor,SYNETRIX LTD,23/07/2012," 3,805.00 "
"Development, Business & Housing",Operational Property,WCOA,Capital Expenditure,Payments to Contractor,GF TOMLINSON BIRMINGHAM LTD,25/07/2012," 154,778.04 "
"Development, Business & Housing",Operational Property,WCOA,Capital Expenditure,Payments to Contractor,TAYLORS MECHANICAL H & P SERVICES LTD,23/07/2012, 570.00 
"Development, Business & Housing",Operational Property,WCOA,Capital Expenditure,Payments to Contractor,TAYLORS MECHANICAL H & P SERVICES LTD,24/07/2012," 3,781.55 "
"Development, Business & Housing",Operational Property,WCOA,Capital Expenditure,Payments to Contractor,TAYLORS MECHANICAL H & P SERVICES LTD,24/07/2012," 1,727.68 "
"Development, Business & Housing",Operational Property,WFBF,Capital Expenditure,Payments to Contractor,TAYLORS MECHANICAL H & P SERVICES LTD,13/07/2012, 786.99 
"Development, Business & Housing",Operational Property,WFBF,Capital Expenditure,Payments to Contractor,JONES & HAMPTON LTD,13/07/2012," 7,542.95 "
"Development, Business & Housing",Operational Property,WFBF,Capital Expenditure,Payments to Contractor,JONES & HAMPTON LTD,25/07/2012," 23,695.52 "
"Development, Business & Housing",Operational Property,WFBF,Capital Expenditure,Payments to Contractor,SIGNS EXPRESS (TELFORD),26/07/2012, 630.00 
"Development, Business & Housing",Operational Property,WFBF,Capital Expenditure,Payments to Contractor,JONES & HAMPTON LTD,11/07/2012," 7,898.51 "
"Development, Business & Housing",Operational Property,WGBH,Capital Expenditure,Payments to Contractor,TELFORD BUILDING CONTRACTORS,24/07/2012," 11,243.96 "
"Development, Business & Housing",Operational Property,WGBM,Capital Expenditure,Payments to Contractor,GRANVILLE CONSTRUCTION & MAINTENANCE LTD,27/07/2012, 557.04 
"Development, Business & Housing",Operational Property,WGBM,Capital Expenditure,Payments to Contractor,GRANVILLE CONSTRUCTION & MAINTENANCE LTD,27/07/2012, 835.57 
"Development, Business & Housing",Operational Property,WGCF,Capital Expenditure,Payments to Contractor,TELFORD & WREKIN SERVICES LTD,16/07/2012," 1,020.00 "
"Development, Business & Housing",Operational Property,WGCF,Capital Expenditure,Payments to Contractor,JONES & HAMPTON LTD,12/07/2012," 1,554.66 "
"Development, Business & Housing",Operational Property,WGCF,Capital Expenditure,Payments to Contractor,WINDOW & DOOR CONTRACT SERVICES,11/07/2012," 2,209.14 "
"Development, Business & Housing",Operational Property,WGCF,Capital Expenditure,Payments to Contractor,WINDOW & DOOR CONTRACT SERVICES,11/07/2012," 1,176.93 "
"Development, Business & Housing",Operational Property,WGCF,Capital Expenditure,Payments to Contractor,TELFORD & WREKIN SERVICES LTD,11/07/2012, 765.00 
"Development, Business & Housing",Operational Property,WGCF,Capital Expenditure,Payments to Contractor,R M F LANDSCAPING LTD,26/07/2012, 897.50 
"Development, Business & Housing",Operational Property,WGCF,Capital Expenditure,Payments to Contractor,PP ELECTRICAL SERVICES,26/07/2012," 4,151.96 "
"Development, Business & Housing",Operational Property,WGCF,Capital Expenditure,Payments to Contractor,MIDLANDS WOOD FUEL SUPPLY LTD,26/07/2012," 2,050.00 "
"Development, Business & Housing",Operational Property,WGCF,Capital Expenditure,Payments to Contractor,ERIC NEVILLE CATERING SUPPLIES LTD,17/07/2012," 1,455.00 "
"Development, Business & Housing",Operational Property,WGCF,Capital Expenditure,Payments to Contractor,JOHNSON CONTROLS LTD,11/07/2012," 2,178.51 "
"Development, Business & Housing",Operational Property,WGCF,Capital Expenditure,Fixtures & Fittings & Equipment,THE CLEAN MACHINE DIRECT LTD,31/07/2012," 1,138.20 "
"Development, Business & Housing",Operational Property,WGCF,Capital Expenditure,Fixtures & Fittings & Equipment,A3 MACHINES LIMITED,17/07/2012," 4,384.20 "
"Development, Business & Housing",Operational Property,WGCF,Capital Expenditure,Fixtures & Fittings & Equipment,THE CLEAN MACHINE DIRECT LTD,04/07/2012," 1,363.25 "
"Development, Business & Housing",Operational Property,WGCF,Capital Expenditure,Other Capital Expenditure,PEGASUS PLANNING GROUP LLP,27/07/2012," 2,870.00 "
"Development, Business & Housing",Operational Property,WGCF,Capital Expenditure,Other Capital Expenditure,VPS (UK) LTD,27/07/2012," 1,566.25 "
"Development, Business & Housing",Operational Property,WGCF,Capital Expenditure,Other Capital Expenditure,PEGASUS PLANNING GROUP LLP,27/07/2012," 2,000.00 "
"Development, Business & Housing",Operational Property,WGCF,Capital Expenditure,Other Capital Expenditure,PEGASUS PLANNING GROUP LLP,02/07/2012," 3,650.00 "
"Development, Business & Housing",Operational Property,WGCF,Capital Expenditure,Other Capital Expenditure,WARDELL ARMSTRONG,31/07/2012, 500.00 
"Development, Business & Housing",Operational Property,WGCF,Capital Expenditure,Other Capital Expenditure,WARDELL ARMSTRONG,11/07/2012," 1,850.00 "
"Development, Business & Housing",Operational Property,WPJF,Capital Expenditure,Payments to Contractor,TELFORD BUILDING CONTRACTORS,18/07/2012," 17,776.42 "
"Development, Business & Housing",Operational Property,WPJF,Capital Expenditure,Payments to Contractor,JORDAN LEWIS ASSOCIATES LTD,27/07/2012," 4,266.00 "
"Development, Business & Housing",Operational Property,WPJR,Capital Expenditure,Payments to Contractor,WELLINGTON INSULATION CO. LTD,18/07/2012," 7,495.00 "
"Development, Business & Housing",Operational Property,WPJR,Capital Expenditure,Payments to Contractor,JORDAN LEWIS ASSOCIATES LTD,11/07/2012," 3,285.00 "
"Development, Business & Housing",Operational Property,WPLL,Capital Expenditure,Payments to Contractor,JONES & HAMPTON LTD,13/07/2012," 5,831.00 "
"Development, Business & Housing",Operational Property,WPLL,Capital Expenditure,Payments to Contractor,JONES & HAMPTON LTD,11/07/2012," 7,659.00 "
"Development, Business & Housing",Operational Property,WPMD,Capital Expenditure,Payments to Contractor,JORDAN LEWIS ASSOCIATES LTD,11/07/2012," 3,060.00 "
"Development, Business & Housing",Operational Property,WPMU,Capital Expenditure,Payments to Contractor,GROUND INVESTIGATION & PILING LTD,26/07/2012," 1,539.75 "
"Development, Business & Housing",Operational Property,WPMU,Capital Expenditure,Payments to Contractor,BARRY LOWE SURVEYS LTD,11/07/2012, 650.00 
"Development, Business & Housing",Operational Property,WPND,Capital Expenditure,New construction conversion & renovation,MCPHILLIPS (WELLINGTON) LTD,13/07/2012," 39,800.80 "
"Development, Business & Housing",Operational Property,WPRH,Capital Expenditure,Payments to Contractor,GRANVILLE CONSTRUCTION & MAINTENANCE LTD,11/07/2012, 771.61 
"Development, Business & Housing",Operational Property,WPRH,Capital Expenditure,Payments to Contractor,GRANVILLE CONSTRUCTION & MAINTENANCE LTD,11/07/2012," 1,157.41 "
"Development, Business & Housing",Operational Property,WPSG,Capital Expenditure,Payments to Contractor,PRYCE (BUILDERS) LTD,23/07/2012," 49,867.40 "
"Development, Business & Housing",Operational Property,WPWL,Capital Expenditure,Building Regs & Planning Fees,West Mercia Energy (WME),24/07/2012,"-1,551.47 "
"Development, Business & Housing",Strategic Housing,DHAT,Supplies & Services,Other Expenses,DATASAVE LIMITED,11/07/2012, 671.83 
"Development, Business & Housing",Strategic Housing,DHAT,Supplies & Services,Other Expenses,DATASAVE LIMITED,11/07/2012, 765.12 
"Development, Business & Housing",Strategic Housing,DHAT,Supplies & Services,Other Expenses,DATASAVE LIMITED,11/07/2012, 932.86 
"Development, Business & Housing",Strategic Housing,DHAT,Supplies & Services,Other Expenses,DATASAVE LIMITED,11/07/2012, 894.71 
"Development, Business & Housing",Strategic Housing,DHAT,Supplies & Services,Other Expenses,DATASAVE LIMITED,11/07/2012, 904.98 
"Development, Business & Housing",Strategic Housing,EWAJ,Supplies & Services,Photographs,Q Squared Design Ltd,31/07/2012," 13,160.00 "
"Development, Business & Housing",Strategic Housing,EWAJ,Supplies & Services,Consultants Fees,Hyder Consulting (UK) Ltd,06/07/2012," 1,329.60 "
"Development, Business & Housing",Strategic Housing,WDAF,Capital Expenditure,External Professional Fees,M J PERRINS,25/07/2012," 6,073.82 "
"Development, Business & Housing",Strategic Housing,WDAF,Capital Expenditure,Other Capital Expenditure,ROSEMONT BUILDING CONTRACTORS,02/07/2012," 7,646.66 "
"Development, Business & Housing",Strategic Housing,WDAF,Capital Expenditure,Other Capital Expenditure,THREE PINES BUILDING CO LTD,02/07/2012," 3,384.10 "
"Development, Business & Housing",Strategic Housing,WDAF,Capital Expenditure,Other Capital Expenditure,THREE PINES BUILDING CO LTD,02/07/2012," 4,074.24 "
"Development, Business & Housing",Strategic Housing,WDAF,Capital Expenditure,Other Capital Expenditure,R E BROWN BUILDING CONTRACTS,11/07/2012," 2,974.47 "
"Development, Business & Housing",Strategic Housing,WDAF,Capital Expenditure,Other Capital Expenditure,ROSEMONT BUILDING CONTRACTORS,02/07/2012," 3,266.82 "
"Development, Business & Housing",Strategic Housing,WDAF,Capital Expenditure,Other Capital Expenditure,ROSEMONT BUILDING CONTRACTORS,02/07/2012," 3,616.70 "
"Development, Business & Housing",Strategic Housing,WDAF,Capital Expenditure,Other Capital Expenditure,M J PERRINS,10/07/2012," 10,498.00 "
"Development, Business & Housing",Strategic Housing,WDAF,Capital Expenditure,Other Capital Expenditure,STANNAH LIFT SERVICES LTD,10/07/2012," 1,886.00 "
"Development, Business & Housing",Strategic Housing,WDAF,Capital Expenditure,Other Capital Expenditure,M J PERRINS,30/07/2012," 3,000.00 "
"Development, Business & Housing",Strategic Housing,WDAF,Capital Expenditure,Other Capital Expenditure,REDACTED PERSONAL INFORMATION,30/07/2012," 3,682.06 "
"Development, Business & Housing",Strategic Housing,WDAF,Capital Expenditure,Other Capital Expenditure,AIDS & ADAPTIONS LTD,30/07/2012," 2,500.00 "
"Development, Business & Housing",Strategic Housing,WDAF,Capital Expenditure,Other Capital Expenditure,THE WREKIN HOUSING TRUST,30/07/2012," 1,515.65 "
"Development, Business & Housing",Strategic Housing,WDAF,Capital Expenditure,Other Capital Expenditure,THE WREKIN HOUSING TRUST,30/07/2012," 1,118.05 "
"Development, Business & Housing",Strategic Housing,WDAF,Capital Expenditure,Other Capital Expenditure,WREKIN HOUSING TRUST,30/07/2012," 1,689.02 "
"Development, Business & Housing",Strategic Housing,WDAF,Capital Expenditure,Other Capital Expenditure,THE WREKIN HOUSING TRUST,30/07/2012," 1,302.80 "
"Development, Business & Housing",Strategic Housing,WDAF,Capital Expenditure,Other Capital Expenditure,THE WREKIN HOUSING TRUST,30/07/2012, 677.01 
"Development, Business & Housing",Strategic Housing,WDAF,Capital Expenditure,Other Capital Expenditure,THE WREKIN HOUSING TRUST,30/07/2012," 1,182.76 "
"Development, Business & Housing",Strategic Housing,WDAF,Capital Expenditure,Other Capital Expenditure,THE WREKIN HOUSING TRUST,30/07/2012," 1,476.05 "
"Development, Business & Housing",Strategic Housing,WDAF,Capital Expenditure,Other Capital Expenditure,THE WREKIN HOUSING TRUST,30/07/2012, 629.51 
"Development, Business & Housing",Strategic Housing,WDAF,Capital Expenditure,Other Capital Expenditure,THE WREKIN HOUSING TRUST,30/07/2012," 1,327.07 "
"Development, Business & Housing",Strategic Housing,WDAF,Capital Expenditure,Other Capital Expenditure,THE WREKIN HOUSING TRUST,30/07/2012," 1,757.55 "
"Development, Business & Housing",Strategic Housing,WDAF,Capital Expenditure,Other Capital Expenditure,THE WREKIN HOUSING TRUST,04/07/2012," 1,441.30 "
"Development, Business & Housing",Strategic Housing,WDAF,Capital Expenditure,Other Capital Expenditure,PILOT HEAT,11/07/2012, 703.91 
"Development, Business & Housing",Strategic Housing,WDAF,Capital Expenditure,Other Capital Expenditure,M J PERRINS,11/07/2012," 7,082.85 "
"Development, Business & Housing",Strategic Housing,WDAF,Capital Expenditure,Other Capital Expenditure,ROSEMONT BUILDING CONTRACTORS,11/07/2012," 7,646.66 "
"Development, Business & Housing",Strategic Housing,WDAF,Capital Expenditure,Other Capital Expenditure,ROSEMONT BUILDING CONTRACTORS,11/07/2012," 3,791.84 "
"Development, Business & Housing",Strategic Housing,WDAF,Capital Expenditure,Other Capital Expenditure,R E BROWN BUILDING CONTRACTS,30/07/2012," 12,906.22 "
"Development, Business & Housing",Strategic Housing,WDAF,Capital Expenditure,Other Capital Expenditure,THE WREKIN HOUSING TRUST,04/07/2012," 1,597.76 "
"Development, Business & Housing",Strategic Housing,WDAF,Capital Expenditure,Other Capital Expenditure,THE WREKIN HOUSING TRUST,04/07/2012," 1,491.79 "
"Development, Business & Housing",Strategic Housing,WDAF,Capital Expenditure,Other Capital Expenditure,THE WREKIN HOUSING TRUST,04/07/2012," 1,259.39 "
"Development, Business & Housing",Strategic Housing,WDAF,Capital Expenditure,Other Capital Expenditure,THE WREKIN HOUSING TRUST,04/07/2012, 651.56 
"Development, Business & Housing",Strategic Housing,WDAF,Capital Expenditure,Other Capital Expenditure,THE WREKIN HOUSING TRUST,04/07/2012," 1,272.44 "
"Development, Business & Housing",Strategic Housing,WDAF,Capital Expenditure,Other Capital Expenditure,THE WREKIN HOUSING TRUST,30/07/2012, 818.42 
"Development, Business & Housing",Strategic Housing,WDAF,Capital Expenditure,Other Capital Expenditure,THE WREKIN HOUSING TRUST,30/07/2012, 753.32 
"Development, Business & Housing",Strategic Housing,WDAF,Capital Expenditure,Other Capital Expenditure,THE WREKIN HOUSING TRUST,30/07/2012, 739.42 
"Development, Business & Housing",Strategic Housing,WDAF,Capital Expenditure,Other Capital Expenditure,THE WREKIN HOUSING TRUST,30/07/2012," 1,457.04 "
"Development, Business & Housing",Strategic Housing,WDAF,Capital Expenditure,Other Capital Expenditure,THE WREKIN HOUSING TRUST,30/07/2012," 1,369.51 "
"Development, Business & Housing",Strategic Housing,WDAF,Capital Expenditure,Other Capital Expenditure,THE WREKIN HOUSING TRUST,30/07/2012," 1,351.99 "
"Development, Business & Housing",Strategic Housing,WDAF,Capital Expenditure,Other Capital Expenditure,THE WREKIN HOUSING TRUST,04/07/2012," 1,350.77 "
"Development, Business & Housing",Strategic Housing,WDAF,Capital Expenditure,Other Capital Expenditure,THE WREKIN HOUSING TRUST,04/07/2012," 1,308.35 "
"Development, Business & Housing",Strategic Housing,WDAF,Capital Expenditure,Other Capital Expenditure,THE WREKIN HOUSING TRUST,04/07/2012," 1,330.93 "
"Development, Business & Housing",Strategic Housing,WDAF,Capital Expenditure,Other Capital Expenditure,THE WREKIN HOUSING TRUST,04/07/2012," 1,322.05 "
"Development, Business & Housing",Strategic Housing,WDAF,Capital Expenditure,Other Capital Expenditure,THE WREKIN HOUSING TRUST,04/07/2012," 1,205.24 "
"Development, Business & Housing",Strategic Housing,WDAF,Capital Expenditure,Other Capital Expenditure,STANNAH LIFT SERVICES LTD,02/07/2012," 1,407.00 "
"Development, Business & Housing",Strategic Housing,WDAF,Capital Expenditure,Other Capital Expenditure,ROSEMONT BUILDING CONTRACTORS,02/07/2012," 7,075.00 "
"Development, Business & Housing",Strategic Housing,WDAF,Capital Expenditure,Other Capital Expenditure,ROSEMONT BUILDING CONTRACTORS,25/07/2012," 8,281.08 "
"Development, Business & Housing",Strategic Housing,WDAF,Capital Expenditure,Other Capital Expenditure,M J PERRINS,25/07/2012," 10,065.00 "
"Development, Business & Housing",Strategic Housing,WDAF,Capital Expenditure,Other Capital Expenditure,AIDS & ADAPTIONS LTD,25/07/2012," 5,360.84 "
"Development, Business & Housing",Strategic Housing,WDAF,Capital Expenditure,Other Capital Expenditure,R E BROWN BUILDING CONTRACTS,24/07/2012," 4,322.59 "
"Development, Business & Housing",Strategic Housing,WDAF,Capital Expenditure,Other Capital Expenditure,AIDS & ADAPTIONS LTD,24/07/2012," 2,640.00 "
"Development, Business & Housing",Strategic Housing,WDSE,Capital Expenditure,Payments to Contractor,HOMES & COMMUNITIES AGENCY,13/07/2012," 3,000.00 "
"Development, Business & Housing",Strategic Housing,WDSE,Capital Expenditure,Payments to Contractor,DAYS NEW HOME LTD,13/07/2012," 21,189.00 "
"Development, Business & Housing",Strategic Housing,WDSH,Capital Expenditure,Payments to Contractor,HQN LTD,25/07/2012, 820.00 
"Development, Business & Housing",Strategic Housing,WDSH,Capital Expenditure,Miscellaneous Income,HQN LTD,25/07/2012," 1,095.00 "
"Development, Business & Housing",Strategic Housing,WDSP,Capital Expenditure,Payments to Contractor,BIRSE CIVILS LIMITED,02/07/2012," 17,403.02 "
"Development, Business & Housing",Strategic Housing,WDSP,Capital Expenditure,Payments to Contractor,FITZGERALD CONTRACTORS LTD,13/07/2012," 39,005.73 "
"Development, Business & Housing",Strategic Regeneration & Borough Towns Initiative,ASAA,Supplies & Services,Other Expenses,ACTION FOR MARKET TOWNS,09/07/2012, 657.15 
"Development, Business & Housing",Strategic Regeneration & Borough Towns Initiative,ASAB,Employees,Professional Subs,ACTION FOR MARKET TOWNS,11/07/2012, 650.00 
"Development, Business & Housing",Town Centre Project,WCCA,Capital Expenditure,External Professional Fees,MACE LTD,03/07/2012," 32,562.34 "
"Development, Business & Housing",Town Centre Project,WCCA,Capital Expenditure,External Professional Fees,MILLS & REEVE,03/07/2012," 3,000.00 "
"Development, Business & Housing",Town Centre Project,WCCA,Capital Expenditure,External Professional Fees,MILLS & REEVE,03/07/2012," 4,791.70 "
"Development, Business & Housing",Town Centre Project,WCCA,Capital Expenditure,External Professional Fees,MACE LTD,12/07/2012," 54,929.55 "
"Development, Business & Housing",Town Centre Project,WCCA,Capital Expenditure,External Professional Fees,MACE LTD,12/07/2012," 13,963.62 "
"Development, Business & Housing",Town Centre Project,WCCA,Capital Expenditure,External Professional Fees,MACE LTD,11/07/2012," 2,525.25 "
"Development, Business & Housing",Town Centre Project,WCCA,Capital Expenditure,External Professional Fees,MACE LTD,11/07/2012, 613.98 
"Development, Business & Housing",Town Centre Project,WCCA,Capital Expenditure,External Professional Fees,MACE LTD,11/07/2012, 920.96 
"Development, Business & Housing",Town Centre Project,WCCA,Capital Expenditure,External Professional Fees,MACE LTD,11/07/2012," 4,604.82 "
"Development, Business & Housing",Town Centre Project,WCCA,Capital Expenditure,External Professional Fees,MACE LTD,11/07/2012," 3,828.00 "
"Development, Business & Housing",Town Centre Project,WCCA,Capital Expenditure,External Professional Fees,MACE LTD,25/07/2012," 53,491.56 "
"Development, Business & Housing",Town Centre Project,WCCA,Capital Expenditure,External Professional Fees,MACE LTD,25/07/2012," 22,860.62 "
"Development, Business & Housing",Town Centre Project,WCCA,Capital Expenditure,External Professional Fees,MACE LTD,25/07/2012," 51,262.34 "
"Development, Business & Housing",Town Centre Project,WCCA,Capital Expenditure,External Professional Fees,MACE LTD,25/07/2012," 1,914.00 "
"Development, Business & Housing",Town Centre Project,WCCA,Capital Expenditure,External Professional Fees,MACE LTD,25/07/2012," 2,354.81 "
"Development, Business & Housing",Town Centre Project,WCCA,Capital Expenditure,Payments to Contractor,3S PRINT & DISPLAY LIMITED,11/07/2012, 845.00 
"Development, Business & Housing",Town Centre Project,WCCA,Capital Expenditure,Payments to Contractor,FITZGERALD CONTRACTORS LTD,24/07/2012," 6,818.47 "
"Development, Business & Housing",Town Centre Project,WCCA,Capital Expenditure,Payments to Contractor,Morgan Sindall plc,31/07/2012," 164,945.89 "
"Development, Business & Housing",Town Centre Project,WCCA,Capital Expenditure,Payments to Contractor,WESTERN POWER DISBRIBUTIONS,17/07/2012," 2,320.46 "
"Development, Business & Housing",Town Centre Project,WCCA,Capital Expenditure,Payments to Contractor,PP ELECTRICAL SERVICES,03/07/2012," 10,988.73 "
"Development, Business & Housing",Town Centre Project,WCCA,Capital Expenditure,Payments to Contractor,FITZGERALD CONTRACTORS LTD,03/07/2012," 2,675.53 "
"Development, Business & Housing",Town Centre Project,WCCA,Capital Expenditure,Payments to Contractor,PP ELECTRICAL SERVICES,25/07/2012," 8,136.35 "
Economy & Skills,Lifelong Learning,ALAA,Employees,Training Expenses,SERVICE BIRMINGHAM LTD,02/07/2012, 500.00 
Economy & Skills,Lifelong Learning,ALAA,Employees,Staff Training,Macbrac Training and Development,04/07/2012," 3,900.00 "
Economy & Skills,Lifelong Learning,ALAA,Employees,Staff Training,Macbrac Training and Development,04/07/2012," 1,500.00 "
Economy & Skills,Lifelong Learning,ALAA,Premises-Related Expenditure,Hire Of Rooms,WROCKWARDINE WOOD & TRENCH PC 06047988,02/07/2012, 592.50 
Economy & Skills,Lifelong Learning,ALAA,Supplies & Services,Equipment - Purchase,SPECIALIST COMPUTERS CENTRES PLC,13/07/2012," 1,177.71 "
Economy & Skills,Lifelong Learning,ALAA,Supplies & Services,Equipment - Purchase,SPECIALIST COMPUTERS CENTRES PLC,13/07/2012," 10,726.70 "
Economy & Skills,Lifelong Learning,ALAA,Supplies & Services,Sub Contractors,TELFORD COLLEGE OF ARTS & TECHNOLOGY,12/07/2012," 33,000.00 "
Economy & Skills,Lifelong Learning,ALAA,Supplies & Services,Sub Contractors,WORKERS EDUCATIONAL ASSOCIATION,13/07/2012," 9,601.00 "
Economy & Skills,Lifelong Learning,ALAA,Third Party Payments,Childminders,CHILDCARE SOS,13/07/2012, 624.00 
Economy & Skills,Lifelong Learning,ALAA,Third Party Payments,Childminders,CHILDCARE SOS,13/07/2012," 2,150.00 "
"Education, Culture & Skills",Arts & Culture,LCAD,Supplies & Services,Printing - Print Room Brochure postage design theatre,Precision Marketing Group,16/07/2012, 860.48 
"Education, Culture & Skills",Arts & Culture,LCAD,Supplies & Services,Postages brochure postage to patrons,Precision Marketing Group,16/07/2012," 2,773.10 "
"Education, Culture & Skills",Arts & Culture,LCAD,Supplies & Services,Performing Rights Fees,THE PERFORMING RIGHT SOCIETY LIMITED,26/07/2012," 1,197.77 "
"Education, Culture & Skills",Arts & Culture,LCAE,Supplies & Services,Artistes Fees,Neil Sands Productions,03/07/2012," 1,433.40 "
"Education, Culture & Skills",Arts & Culture,LCAE,Supplies & Services,Artistes Fees,ARTISTES INTERNATIONAL MANAGEMENT,03/07/2012," 1,601.59 "
"Education, Culture & Skills",Arts & Culture,LCAE,Supplies & Services,Artistes Fees,Psychic Multimedia Ltd,05/07/2012," 3,505.74 "
"Education, Culture & Skills",Arts & Culture,LCAE,Supplies & Services,Artistes Fees,Country Legends,13/07/2012," 1,176.09 "
"Education, Culture & Skills",Arts & Culture,LCAF,Supplies & Services,Artistes Fees,PFL DANCE LTD,05/07/2012," 3,687.68 "
"Education, Culture & Skills",Arts & Culture,LCAN,Supplies & Services,Wet Resale Provision,MOLSON COORS BREWING COMPANY UK LTD,30/07/2012, 773.59 
"Education, Culture & Skills",Arts & Culture,LCAN,Supplies & Services,Wet Resale Provision,MOLSON COORS BREWING COMPANY UK LTD,16/07/2012," 1,466.60 "
"Education, Culture & Skills",School Improvement,KHBG,Supplies & Services,Other Services,NCER CIC,26/07/2012," 2,869.35 "
"Education, Culture & Skills",School Improvement Secondary,KSAC,Third Party Payments,Private Contractors,THE EDUCATION DEVELOPMENT SERVICE LTD,03/07/2012," 8,000.00 "
"Education, Culture & Skills",School Improvement Secondary,KTAA,Supplies & Services,Conference Expenses,UNIVERSITY OF WOLVERHAMPTON,26/07/2012," 3,079.40 "
"Education, Culture & Skills",School Improvement Secondary,WKAB,Capital Expenditure,Computer Hardware,TECHNICAL SERVICES (SHROPSHIRE) LIMITED,03/07/2012," 5,882.50 "
"Education, Culture & Skills",School Improvement Secondary,WKAD,Capital Expenditure,Computer Hardware,SPECIALIST COMPUTERS CENTRES PLC,13/07/2012," 2,495.00 "
"Education, Culture & Skills",School Improvement Secondary,WKAD,Capital Expenditure,Computer Hardware,SPECIALIST COMPUTERS CENTRES PLC,03/07/2012," 1,042.25 "
"Education, Culture & Skills",School Improvement Secondary,WKAD,Capital Expenditure,Computer Hardware,SPECIALIST COMPUTERS CENTRES PLC,16/07/2012," 18,548.00 "
"Education, Culture & Skills",School Improvement Secondary,WKAS,Capital Expenditure,Computer Hardware,SPECIALIST COMPUTERS CENTRES PLC,16/07/2012," 1,751.04 "
"Education, Culture & Skills",School Improvement Secondary,WKAS,Capital Expenditure,Computer Hardware,SPECIALIST COMPUTERS CENTRES PLC,03/07/2012," 4,828.85 "
"Education, Culture & Skills",School Improvement Secondary,WKAS,Capital Expenditure,Computer Hardware,SPECIALIST COMPUTERS CENTRES PLC,03/07/2012, 573.68 
"Education, Culture & Skills",Schools,FFAW,Supplies & Services,Equipment - Purchase,East Shropshire School Sports Co-ordinator Partnership,18/07/2012," 1,867.00 "
"Education, Culture & Skills",Schools,FFAW,Supplies & Services,Equipment - Purchase,GET IN2 GOLF,18/07/2012," 2,402.85 "
Environment & Leisure Services,Environment & Open Space,ECAA,Supplies & Services,Bulk Refuse Contracts Purch,CRAEMER UK LTD,30/07/2012," 7,560.00 "
Environment & Leisure Services,Environment & Open Space,ECAB,Supplies & Services,Sub Contractors,KEEP BRITAIN TIDY,30/07/2012,-500.00 
Environment & Leisure Services,Environment & Open Space,ECAD,Supplies & Services,Advertising,SIGNS EXPRESS (TELFORD),09/07/2012, 897.00 
Environment & Leisure Services,Environment & Open Space,ECAF,Supplies & Services,Other Services,HILBRAE PETS HOTEL,30/07/2012," 1,768.75 "
Environment & Leisure Services,Environment & Open Space,ECAF,Third Party Payments,Contractor Recharge,TELFORD & WREKIN SERVICES LTD,30/07/2012," 2,066.00 "
Environment & Leisure Services,Environment & Open Space,ECAH,Supplies & Services,Bulk Refuse Contracts Purch,SAI PAC (UK) LTD,05/07/2012," 13,000.00 "
Environment & Leisure Services,Environment & Open Space,ECAH,Third Party Payments,Contractor Recharge,TELFORD & WREKIN SERVICES LTD,16/07/2012," 96,431.25 "
Environment & Leisure Services,Environment & Open Space,EEAB,Supplies & Services,Other Services,TELFORD & WREKIN SERVICES LTD,31/07/2012," 2,014.98 "
Environment & Leisure Services,Environment & Open Space,EEAE,Supplies & Services,Other Materials,BRITISH SEED HOUSES LTD,10/07/2012," 2,289.60 "
Environment & Leisure Services,Environment & Open Space,EECD,Premises-Related Expenditure,General Rents,TELFORD & WREKIN SERVICES LTD,26/07/2012," 9,476.99 "
Environment & Leisure Services,Environment & Open Space,EECE,Supplies & Services,Highways maintenance,ACE ENGINEERS (MORLEY) LTD,03/07/2012," 1,487.00 "
Environment & Leisure Services,Environment & Open Space,EHAL,Premises-Related Expenditure,R&M -Buildings DLO Charge,GROUND INVESTIGATION & PILING LTD,04/07/2012, 600.00 
Environment & Leisure Services,Environment & Open Space,EHBM,Third Party Payments,Private Contractors,TELFORD & WREKIN SERVICES LTD,16/07/2012," 102,558.79 "
Environment & Leisure Services,Environment & Open Space,EHBM,Third Party Payments,Private Contractors,TELFORD & WREKIN SERVICES LTD,16/07/2012," 743,435.75 "
Environment & Leisure Services,Environment & Open Space,EPAF,Supplies & Services,Other Materials,CANNON HYGIENE LTD,26/07/2012, 903.51 
Environment & Leisure Services,Environment & Open Space,EPAF,Supplies & Services,Sub Contractors,TELFORD & WREKIN SERVICES LTD,24/07/2012," 2,987.74 "
Environment & Leisure Services,Environment & Open Space,EPAF,Supplies & Services,Sub Contractors,TELFORD & WREKIN SERVICES LTD,13/07/2012," 1,605.20 "
Environment & Leisure Services,Environment & Open Space,EPAF,Supplies & Services,Security Services,BUSINESS WATCH GUARDING LIMITED,18/07/2012, 592.60 
Environment & Leisure Services,Environment & Open Space,EPAF,Supplies & Services,Co-Co General,SIGNS EXPRESS (TELFORD),18/07/2012," 1,170.00 "
Environment & Leisure Services,Environment & Open Space,EWAB,Supplies & Services,Commissions,CHAIRS & SPARES,25/07/2012, 747.60 
Environment & Leisure Services,Environment & Open Space,EWAB,Supplies & Services,Commissions,THE ROYAL MARINES ASSOCIATION,03/07/2012, 557.71 
Environment & Leisure Services,Environment & Open Space,EWAD,Supplies & Services,Other Services,SITA UK,24/07/2012," 6,299.86 "
Environment & Leisure Services,Environment & Open Space,EWAE,Supplies & Services,Other Materials,JACK MOODY LTD,02/07/2012," 7,321.80 "
Environment & Leisure Services,Environment & Open Space,EWAE,Supplies & Services,Highways Equipment,SITA UK,25/07/2012," 17,294.84 "
Environment & Leisure Services,Environment & Open Space,EWAE,Supplies & Services,Green Waste,JACK MOODY LTD,24/07/2012," 1,224.48 "
Environment & Leisure Services,Environment & Open Space,EWAE,Supplies & Services,Green Waste,JACK MOODY LTD,02/07/2012," 1,275.84 "
Environment & Leisure Services,Environment & Open Space,EWAE,Supplies & Services,Other Services,SITA UK,27/07/2012," 143,529.52 "
Environment & Leisure Services,Environment & Open Space,EWAE,Supplies & Services,Service Contracts,AQUA FORCE SPECIAL WASTE LTD,10/07/2012," 1,945.00 "
Environment & Leisure Services,Environment & Open Space,EWAE,Supplies & Services,Service Contracts,AQUA FORCE SPECIAL WASTE LTD,02/07/2012, 640.00 
Environment & Leisure Services,Environment & Open Space,EWAE,Supplies & Services,Service Contracts,SRCL LTD,03/07/2012, 719.17 
Environment & Leisure Services,Environment & Open Space,EWAE,Supplies & Services,Service Contracts,AQUA FORCE SPECIAL WASTE LTD,04/07/2012," 1,450.00 "
Environment & Leisure Services,Environment & Open Space,EWAE,Supplies & Services,Service Contracts,AQUA FORCE SPECIAL WASTE LTD,24/07/2012, 595.00 
Environment & Leisure Services,Environment & Open Space,EWAE,Supplies & Services,Service Contracts,AQUA FORCE SPECIAL WASTE LTD,06/07/2012," 1,450.00 "
Environment & Leisure Services,Environment & Open Space,EWAE,Supplies & Services,Service Contracts,AQUA FORCE SPECIAL WASTE LTD,06/07/2012," 1,780.00 "
Environment & Leisure Services,Environment & Open Space,EWAE,Supplies & Services,Service Contracts,SITA UK,25/07/2012, 684.14 
Environment & Leisure Services,Environment & Open Space,EWAE,Supplies & Services,Service Contracts,SRCL LTD,25/07/2012, 563.49 
Environment & Leisure Services,Environment & Open Space,EWAE,Supplies & Services,Service Contracts,SITA UK,27/07/2012," 143,529.53 "
Environment & Leisure Services,Environment & Open Space,EWAE,Supplies & Services,Asbestos Waste,SITA UK,25/07/2012, 905.52 
Environment & Leisure Services,Environment & Open Space,S190,Supplies & Services,Consultants Fees,Sharpe Pritchard,10/07/2012," 3,291.20 "
Environment & Leisure Services,Environment & Open Space,S190,Supplies & Services,Consultants Fees,Sharpe Pritchard,10/07/2012," 2,543.50 "
Environment & Leisure Services,Environment & Open Space,WEAJ,Capital Expenditure,Payments to Contractor,TELFORD & WREKIN SERVICES LTD,31/07/2012," 1,000.00 "
Environment & Leisure Services,Environment & Open Space,WEAJ,Capital Expenditure,Payments to Contractor,PETER LINSELL MANAGEMENT CONSULTANTS,30/07/2012," 6,350.00 "
Environment & Leisure Services,Environment & Open Space,WEAK,Capital Expenditure,Payments to Contractor,SIGNS EXPRESS (TELFORD),05/07/2012," 3,770.00 "
Environment & Leisure Services,Environment & Open Space,WEPA,Capital Expenditure,Payments to Contractor,SIMPLY ECOLOGY,03/07/2012, 585.20 
Environment & Leisure Services,Highways & Engineering,EHBC,Premises-Related Expenditure,Electricity,West Mercia Energy (WME),16/07/2012," 95,298.57 "
Environment & Leisure Services,Highways & Engineering,EHBC,Premises-Related Expenditure,Electricity,West Mercia Energy (WME),16/07/2012," 82,109.72 "
Environment & Leisure Services,Highways & Engineering,EHBC,Premises-Related Expenditure,Electricity,West Mercia Energy (WME),27/07/2012," 70,944.12 "
Environment & Leisure Services,Highways & Engineering,ESAA,Supplies & Services,Equipment - Hire (Plan plotter),STANFORD MARSH FINANCE LTD,25/07/2012," 1,243.00 "
Environment & Leisure Services,Highways & Engineering,ESAB,Supplies & Services,Removal of leachate,BIOGAS TECHNOLOGY LIMITED,31/07/2012, 734.82 
Environment & Leisure Services,Highways & Engineering,ESAB,Supplies & Services,Removal of leachate,BIOGAS TECHNOLOGY LIMITED,31/07/2012," 2,656.69 "
Environment & Leisure Services,Highways & Engineering,ESAB,Supplies & Services,Removal of leachate,BIOGAS TECHNOLOGY LIMITED,31/07/2012," 2,656.69 "
Environment & Leisure Services,Highways & Engineering,ESAB,Supplies & Services,Removal of leachate,BIOGAS TECHNOLOGY LIMITED,31/07/2012," 2,656.69 "
Environment & Leisure Services,Highways & Engineering,ESAE,Supplies & Services,Flood alleviation scheme,Whitehouse Construction Co Ltd,05/07/2012," 10,526.38 "
Environment & Leisure Services,Highways & Engineering,ESAE,Supplies & Services,Flood alleviation scheme,Whitehouse Construction Co Ltd,27/07/2012," 2,284.44 "
Environment & Leisure Services,Highways & Engineering,WEAC,Capital Expenditure,Payments to Contractor,ALUN GRIFFITHS (CONTRACTORS) LTD,31/07/2012," 38,395.54 "
Environment & Leisure Services,Highways & Engineering,WEAC,Capital Expenditure,Payments to Contractor,AJB CONTRACTING LTD,31/07/2012," 14,285.00 "
Environment & Leisure Services,Highways & Engineering,WEAC,Capital Expenditure,Payments to Contractor,ALUN GRIFFITHS (CONTRACTORS) LTD,11/07/2012," 24,636.88 "
Environment & Leisure Services,Highways & Engineering,WEAC,Capital Expenditure,Payments to Contractor,SLR CONSULTING LIMITED,02/07/2012, 725.00 
Environment & Leisure Services,Highways & Engineering,WEAD,Capital Expenditure,Payments to Contractor,JACOBS ENGINEERING UK LIMITED,10/07/2012, 850.00 
Environment & Leisure Services,Highways & Engineering,WEAD,Capital Expenditure,Payments to Contractor,JACOBS ENGINEERING UK LIMITED,25/07/2012," 2,457.00 "
Environment & Leisure Services,Highways & Engineering,WEAD,Capital Expenditure,Payments to Contractor,FITZGERALD CONTRACTORS LTD,10/07/2012," 4,597.25 "
Environment & Leisure Services,Highways & Engineering,WEAD,Capital Expenditure,Payments to Contractor,FITZGERALD CONTRACTORS LTD,25/07/2012," 2,789.88 "
Environment & Leisure Services,Highways & Engineering,WEAD,Capital Expenditure,Payments to Contractor,FITZGERALD CONTRACTORS LTD,25/07/2012," 15,424.07 "
Environment & Leisure Services,Highways & Engineering,WEAD,Capital Expenditure,Payments to Contractor,FITZGERALD CONTRACTORS LTD,13/07/2012," 5,379.22 "
Environment & Leisure Services,Highways & Engineering,WEAD,Capital Expenditure,Payments to Contractor,FITZGERALD CONTRACTORS LTD,31/07/2012," 8,259.47 "
Environment & Leisure Services,Highways & Engineering,WEAF,Capital Expenditure,Payments to Contractor,JACOBS ENGINEERING UK LIMITED,10/07/2012, 880.00 
Environment & Leisure Services,Highways & Engineering,WEAG,Capital Expenditure,New construction conversion & renovation,ADROIT CONSTRUCTION SERVICES PLC,24/07/2012," 4,066.58 "
Environment & Leisure Services,Highways & Engineering,WEAG,Capital Expenditure,New construction conversion & renovation,ADROIT CONSTRUCTION SERVICES PLC,24/07/2012," 4,066.59 "
Environment & Leisure Services,Highways & Engineering,WEAG,Capital Expenditure,Payments to Contractor,Nicholls Colton Group,13/07/2012," 10,108.00 "
Environment & Leisure Services,Highways & Engineering,WEAG,Capital Expenditure,Payments to Contractor,Nicholls Colton Group,31/07/2012," 2,305.00 "
Environment & Leisure Services,Highways & Engineering,WEAG,Capital Expenditure,Payments to Contractor,FSW Information Technology Solutions,31/07/2012," 3,200.00 "
Environment & Leisure Services,Highways & Engineering,WEAG,Capital Expenditure,Payments to Contractor,Forkers Ltd,10/07/2012," 21,670.77 "
Environment & Leisure Services,Highways & Engineering,WEAH,Capital Expenditure,Payments to Contractor,Kilo Ltd,26/07/2012," 1,465.00 "
Environment & Leisure Services,Highways & Transport,EHAD,Supplies & Services,Consultants Fees,JACOBS ENGINEERING UK LIMITED,11/07/2012," 35,000.00 "
Environment & Leisure Services,Highways & Transport,EHAD,Supplies & Services,Consultants Fees,JACOBS ENGINEERING UK LIMITED,19/07/2012," 22,462.73 "
Environment & Leisure Services,Highways & Transport,EHAQ,Premises-Related Expenditure,Grounds Maintenance - L&CS,AMEC ENVIRONMENT & INFRASTRUCTURE UK LTD,13/07/2012," 1,440.00 "
Environment & Leisure Services,Highways & Transport,EHBD,Supplies & Services,Research Surveys,FREECOM INTERNET SERVICES LTD,30/07/2012," 2,500.00 "
Environment & Leisure Services,Highways & Transport,ETAA,Supplies & Services,Concessionary Travel,ARRIVA MIDLANDS NORTH LIMITED,26/07/2012," 118,948.14 "
Environment & Leisure Services,Highways & Transport,ETAA,Supplies & Services,Concessionary Travel,ARRIVA MIDLANDS NORTH LIMITED,02/07/2012," 161,415.89 "
Environment & Leisure Services,Highways & Transport,ETAA,Supplies & Services,Concessionary Travel,ESP Systex,24/07/2012, 780.69 
Environment & Leisure Services,Highways & Transport,ETAA,Supplies & Services,Public Transport Subsidy,DIAMOND CARS (TELFORD) LTD,03/07/2012, 612.50 
Environment & Leisure Services,Highways & Transport,ETAB,Premises-Related Expenditure,R&M -Building Other,WINDOW & DOOR CONTRACT SERVICES,09/07/2012, 754.40 
Environment & Leisure Services,Highways & Transport,ETAB,Premises-Related Expenditure,Contract Cleaning,OCEAN CONTRACT CLEANING LTD,03/07/2012," 3,321.46 "
Environment & Leisure Services,Highways & Transport,ETAE,Transport-Related Expenditure,Parents Reimbursements,REDACTED PERSONAL INFORMATION,16/07/2012, 502.66 
Environment & Leisure Services,Highways & Transport,ETAE,Transport-Related Expenditure,Season Tickets,ARRIVA TRAINS WALES,24/07/2012," 1,590.00 "
Environment & Leisure Services,Highways & Transport,ETAE,Transport-Related Expenditure,Taxi Costs,CENTRAL TAXIS LTD SHREWSBURY,26/07/2012," 1,255.50 "
Environment & Leisure Services,Highways & Transport,ETAE,Transport-Related Expenditure,Taxi Costs,DIAMOND CARS (TELFORD) LTD,13/07/2012," 1,668.80 "
Environment & Leisure Services,Highways & Transport,ETAE,Transport-Related Expenditure,Taxi Costs,ULTIMATE TAXIS LTD,05/07/2012, 538.56 
Environment & Leisure Services,Highways & Transport,ETAE,Transport-Related Expenditure,Taxi Costs,CENTRAL TAXIS LTD SHREWSBURY,26/07/2012, 645.83 
Environment & Leisure Services,Highways & Transport,ETAE,Transport-Related Expenditure,Taxi Costs,CENTRAL TAXIS LTD SHREWSBURY,26/07/2012, 765.00 
Environment & Leisure Services,Highways & Transport,ETAE,Transport-Related Expenditure,Taxi Costs,NSL Limited t/a Patient First Group,27/07/2012," 1,170.00 "
Environment & Leisure Services,Highways & Transport,ETAE,Transport-Related Expenditure,Taxi Costs,CENTRAL TAXIS LTD SHREWSBURY,06/07/2012, 963.90 
Environment & Leisure Services,Highways & Transport,ETAE,Transport-Related Expenditure,Taxi Costs,CENTRAL TAXIS LTD SHREWSBURY,05/07/2012," 1,071.00 "
Environment & Leisure Services,Highways & Transport,ETAE,Transport-Related Expenditure,Taxi Costs,CENTRAL TAXIS LTD SHREWSBURY,05/07/2012, 592.62 
Environment & Leisure Services,Highways & Transport,ETAE,Transport-Related Expenditure,Taxi Costs,DIAMOND CARS (TELFORD) LTD,13/07/2012, 856.80 
Environment & Leisure Services,Highways & Transport,ETAE,Transport-Related Expenditure,Taxi Costs,DIAMOND CARS (TELFORD) LTD,13/07/2012, 918.00 
Environment & Leisure Services,Highways & Transport,ETAE,Transport-Related Expenditure,Taxi Costs,DIAMOND CARS (TELFORD) LTD,13/07/2012," 1,156.50 "
Environment & Leisure Services,Highways & Transport,ETAE,Transport-Related Expenditure,Taxi Costs,DIAMOND CARS (TELFORD) LTD,13/07/2012," 2,528.00 "
Environment & Leisure Services,Highways & Transport,ETAE,Transport-Related Expenditure,Taxi Costs,DIAMOND CARS (TELFORD) LTD,13/07/2012, 930.24 
Environment & Leisure Services,Highways & Transport,ETAE,Transport-Related Expenditure,Taxi Costs,CENTRAL TAXIS LTD SHREWSBURY,10/07/2012, 630.00 
Environment & Leisure Services,Highways & Transport,ETAE,Transport-Related Expenditure,Taxi Costs,DIAMOND CARS (TELFORD) LTD,10/07/2012, 624.24 
Environment & Leisure Services,Highways & Transport,ETAE,Transport-Related Expenditure,Taxi Costs,COUNTY CARS,05/07/2012, 516.00 
Environment & Leisure Services,Highways & Transport,ETAE,Transport-Related Expenditure,Taxi Costs,CENTRAL TAXIS LTD SHREWSBURY,26/07/2012, 642.60 
Environment & Leisure Services,Highways & Transport,ETAE,Transport-Related Expenditure,Taxi Costs,COUNTY CARS,06/07/2012, 507.00 
Environment & Leisure Services,Highways & Transport,ETAE,Transport-Related Expenditure,Taxi Costs,COUNTY CARS,06/07/2012, 709.28 
Environment & Leisure Services,Highways & Transport,ETAE,Transport-Related Expenditure,Taxi Costs,CENTRAL TAXIS LTD SHREWSBURY,06/07/2012, 510.57 
Environment & Leisure Services,Highways & Transport,ETAE,Transport-Related Expenditure,Taxi Costs,CENTRAL TAXIS LTD SHREWSBURY,06/07/2012, 868.53 
Environment & Leisure Services,Highways & Transport,ETAE,Transport-Related Expenditure,Taxi Costs,CENTRAL TAXIS LTD SHREWSBURY,06/07/2012, 696.60 
Environment & Leisure Services,Highways & Transport,ETAE,Transport-Related Expenditure,Taxi Costs,NSL Limited t/a Patient First Group,06/07/2012," 1,890.00 "
Environment & Leisure Services,Highways & Transport,ETAE,Transport-Related Expenditure,Taxi Costs,DIAMOND CARS (TELFORD) LTD,26/07/2012," 1,399.44 "
Environment & Leisure Services,Highways & Transport,ETAE,Transport-Related Expenditure,Taxi Costs,DIAMOND CARS (TELFORD) LTD,26/07/2012," 1,541.10 "
Environment & Leisure Services,Highways & Transport,ETAE,Transport-Related Expenditure,Taxi Costs,DIAMOND CARS (TELFORD) LTD,13/07/2012, 738.24 
Environment & Leisure Services,Highways & Transport,ETAE,Transport-Related Expenditure,Contract Hire,CENTRAL TAXIS LTD SHREWSBURY,25/07/2012, 553.35 
Environment & Leisure Services,Highways & Transport,ETAE,Transport-Related Expenditure,Contract Hire,CENTRAL TAXIS LTD SHREWSBURY,06/07/2012, 785.40 
Environment & Leisure Services,Highways & Transport,ETAE,Transport-Related Expenditure,Contract Hire,COUNTY CARS,06/07/2012," 2,208.80 "
Environment & Leisure Services,Highways & Transport,ETAE,Transport-Related Expenditure,Contract Hire - Mini Bus,SHAWS TRAVEL LTD,13/07/2012," 1,833.60 "
Environment & Leisure Services,Highways & Transport,ETAE,Transport-Related Expenditure,Contract Hire - Mini Bus,SHAWS TRAVEL LTD,12/07/2012," 1,230.00 "
Environment & Leisure Services,Highways & Transport,ETAE,Transport-Related Expenditure,Contract Hire - Mini Bus,ULTIMATE TAXIS LTD,16/07/2012," 2,640.00 "
Environment & Leisure Services,Highways & Transport,ETAE,Transport-Related Expenditure,Contract Hire - Mini Bus,AT BROWN (COACHES) LTD,05/07/2012," 1,007.15 "
Environment & Leisure Services,Highways & Transport,ETAE,Transport-Related Expenditure,Contract Hire - Mini Bus,EXPRESS TRAVEL,26/07/2012," 1,425.00 "
Environment & Leisure Services,Highways & Transport,ETAE,Transport-Related Expenditure,Contract Hire - Mini Bus,EXPRESS DRIVEN,05/07/2012," 1,602.24 "
Environment & Leisure Services,Highways & Transport,ETAE,Transport-Related Expenditure,Contract Hire - Mini Bus,EXPRESS TRAVEL,26/07/2012, 900.00 
Environment & Leisure Services,Highways & Transport,ETAE,Transport-Related Expenditure,Contract Hire - Mini Bus,DIAMOND CARS (TELFORD) LTD,26/07/2012," 1,496.00 "
Environment & Leisure Services,Highways & Transport,ETAE,Transport-Related Expenditure,Contract Hire - Mini Bus,EXPRESS DRIVEN,10/07/2012," 1,266.88 "
Environment & Leisure Services,Highways & Transport,ETAE,Transport-Related Expenditure,Contract Hire - Mini Bus,ULTIMATE TAXIS LTD,16/07/2012, 640.03 
Environment & Leisure Services,Highways & Transport,ETAE,Transport-Related Expenditure,Contract Hire - Mini Bus,DIAMOND CARS (TELFORD) LTD,26/07/2012," 2,221.56 "
Environment & Leisure Services,Highways & Transport,ETAE,Transport-Related Expenditure,Contract Hire - Mini Bus,EXPRESS TRAVEL,26/07/2012," 1,425.00 "
Environment & Leisure Services,Highways & Transport,ETAE,Transport-Related Expenditure,Contract Hire - Mini Bus,EXPRESS DRIVEN,11/07/2012," 1,840.00 "
Environment & Leisure Services,Highways & Transport,ETAE,Transport-Related Expenditure,Contract Hire - Mini Bus,DIAMOND CARS (TELFORD) LTD,13/07/2012," 1,020.00 "
Environment & Leisure Services,Highways & Transport,ETAE,Transport-Related Expenditure,Contract Hire - Mini Bus,DIAMOND CARS (TELFORD) LTD,13/07/2012," 1,591.20 "
Environment & Leisure Services,Highways & Transport,ETAE,Transport-Related Expenditure,Contract Hire - Mini Bus,DIAMOND CARS (TELFORD) LTD,13/07/2012," 1,140.00 "
Environment & Leisure Services,Highways & Transport,ETAE,Transport-Related Expenditure,Contract Hire - Mini Bus,DIAMOND CARS (TELFORD) LTD,13/07/2012," 1,464.21 "
Environment & Leisure Services,Highways & Transport,ETAE,Transport-Related Expenditure,Contract Hire - Mini Bus,SHAWS TRAVEL LTD,10/07/2012," 1,335.00 "
Environment & Leisure Services,Highways & Transport,ETAE,Transport-Related Expenditure,Contract Hire - Mini Bus,SHAWS TRAVEL LTD,10/07/2012," 1,335.00 "
Environment & Leisure Services,Highways & Transport,ETAE,Transport-Related Expenditure,Contract Hire - Mini Bus,M & B MINIBUSES LTD,10/07/2012," 2,700.00 "
Environment & Leisure Services,Highways & Transport,ETAE,Transport-Related Expenditure,Contract Hire - Mini Bus,KLM TRAVEL,05/07/2012," 1,695.00 "
Environment & Leisure Services,Highways & Transport,ETAE,Transport-Related Expenditure,Contract Hire - Mini Bus,DIAMOND CARS (TELFORD) LTD,26/07/2012," 1,672.00 "
Environment & Leisure Services,Highways & Transport,ETAE,Transport-Related Expenditure,Contract Hire - Mini Bus,ULTIMATE TAXIS LTD,11/07/2012, 880.04 
Environment & Leisure Services,Highways & Transport,ETAE,Transport-Related Expenditure,Contract Hire - Mini Bus,AT BROWN (COACHES) LTD,05/07/2012, 512.33 
Environment & Leisure Services,Highways & Transport,ETAE,Transport-Related Expenditure,Contract Hire - Mini Bus,AT BROWN (COACHES) LTD,05/07/2012, 512.33 
Environment & Leisure Services,Highways & Transport,ETAE,Transport-Related Expenditure,Contract Hire - Mini Bus,AT BROWN (COACHES) LTD,05/07/2012, 976.45 
Environment & Leisure Services,Highways & Transport,ETAE,Transport-Related Expenditure,Contract Hire - Mini Bus,AT BROWN (COACHES) LTD,05/07/2012, 976.45 
Environment & Leisure Services,Highways & Transport,ETAE,Transport-Related Expenditure,Contract Hire - Mini Bus,AT BROWN (COACHES) LTD,05/07/2012, 650.00 
Environment & Leisure Services,Highways & Transport,ETAE,Transport-Related Expenditure,Contract Hire - Mini Bus,AT BROWN (COACHES) LTD,05/07/2012," 1,606.85 "
Environment & Leisure Services,Highways & Transport,ETAE,Transport-Related Expenditure,Contract Hire - Mini Bus,AT BROWN (COACHES) LTD,05/07/2012," 1,156.90 "
Environment & Leisure Services,Highways & Transport,ETAE,Transport-Related Expenditure,Contract Hire - Mini Bus,AT BROWN (COACHES) LTD,05/07/2012, 976.45 
Environment & Leisure Services,Highways & Transport,ETAE,Transport-Related Expenditure,Contract Hire - Mini Bus,AT BROWN (COACHES) LTD,05/07/2012," 1,290.00 "
Environment & Leisure Services,Highways & Transport,ETAE,Transport-Related Expenditure,Contract Hire - Mini Bus,AT BROWN (COACHES) LTD,05/07/2012," 1,059.85 "
Environment & Leisure Services,Highways & Transport,ETAE,Transport-Related Expenditure,Contract Hire - Mini Bus,AT BROWN (COACHES) LTD,05/07/2012," 1,007.15 "
Environment & Leisure Services,Highways & Transport,ETAE,Transport-Related Expenditure,Contract Hire - Mini Bus,SHAWS TRAVEL LTD,12/07/2012," 1,410.00 "
Environment & Leisure Services,Highways & Transport,ETAE,Transport-Related Expenditure,Contract Hire - Mini Bus,ULTIMATE TAXIS LTD,12/07/2012," 1,800.00 "
Environment & Leisure Services,Highways & Transport,ETAE,Transport-Related Expenditure,Transport Contractors,AT BROWN (COACHES) LTD,16/07/2012, 512.33 
Environment & Leisure Services,Highways & Transport,ETAE,Transport-Related Expenditure,Transport Contractors,AT BROWN (COACHES) LTD,16/07/2012," 7,160.40 "
Environment & Leisure Services,Highways & Transport,ETAE,Transport-Related Expenditure,Transport Contractors,AT BROWN (COACHES) LTD,16/07/2012, 650.00 
Environment & Leisure Services,Highways & Transport,ETAE,Transport-Related Expenditure,Transport Contractors,AT BROWN (COACHES) LTD,16/07/2012," 1,606.85 "
Environment & Leisure Services,Highways & Transport,ETAE,Transport-Related Expenditure,Transport Contractors,AT BROWN (COACHES) LTD,16/07/2012," 1,290.00 "
Environment & Leisure Services,Highways & Transport,ETAE,Transport-Related Expenditure,Transport Contractors,AT BROWN (COACHES) LTD,16/07/2012, 512.33 
Environment & Leisure Services,Highways & Transport,ETAE,Transport-Related Expenditure,Transport Contractors,AT BROWN (COACHES) LTD,10/07/2012," 1,007.15 "
Environment & Leisure Services,Highways & Transport,ETAE,Transport-Related Expenditure,Transport Contractors,AT BROWN (COACHES) LTD,10/07/2012, 976.45 
Environment & Leisure Services,Highways & Transport,ETAE,Transport-Related Expenditure,Transport Contractors,AT BROWN (COACHES) LTD,10/07/2012, 650.00 
Environment & Leisure Services,Highways & Transport,ETAE,Transport-Related Expenditure,Transport Contractors,AT BROWN (COACHES) LTD,10/07/2012," 1,606.85 "
Environment & Leisure Services,Highways & Transport,ETAE,Transport-Related Expenditure,Transport Contractors,AT BROWN (COACHES) LTD,10/07/2012," 1,156.90 "
Environment & Leisure Services,Highways & Transport,ETAE,Transport-Related Expenditure,Transport Contractors,AT BROWN (COACHES) LTD,10/07/2012, 976.45 
Environment & Leisure Services,Highways & Transport,ETAE,Transport-Related Expenditure,Transport Contractors,AT BROWN (COACHES) LTD,10/07/2012," 1,290.00 "
Environment & Leisure Services,Highways & Transport,ETAE,Transport-Related Expenditure,Transport Contractors,AT BROWN (COACHES) LTD,10/07/2012," 1,059.85 "
Environment & Leisure Services,Highways & Transport,ETAE,Transport-Related Expenditure,Transport Contractors,AT BROWN (COACHES) LTD,10/07/2012," 1,007.15 "
Environment & Leisure Services,Highways & Transport,ETAE,Transport-Related Expenditure,Transport Contractors,AT BROWN (COACHES) LTD,10/07/2012, 512.33 
Environment & Leisure Services,Highways & Transport,ETAE,Transport-Related Expenditure,Transport Contractors,AT BROWN (COACHES) LTD,10/07/2012, 512.33 
Environment & Leisure Services,Highways & Transport,ETAE,Transport-Related Expenditure,Transport Contractors,M H ELCOCK & SON LTD T/A ELCOCK REISEN,16/07/2012, 850.00 
Environment & Leisure Services,Highways & Transport,ETAE,Transport-Related Expenditure,Transport Contractors,M H ELCOCK & SON LTD T/A ELCOCK REISEN,16/07/2012, 800.00 
Environment & Leisure Services,Highways & Transport,ETAE,Transport-Related Expenditure,Transport Contractors,M H ELCOCK & SON LTD T/A ELCOCK REISEN,16/07/2012, 510.00 
Environment & Leisure Services,Highways & Transport,ETAE,Transport-Related Expenditure,Transport Contractors,M H ELCOCK & SON LTD T/A ELCOCK REISEN,16/07/2012, 725.00 
Environment & Leisure Services,Highways & Transport,ETAE,Transport-Related Expenditure,Transport Contractors,M H ELCOCK & SON LTD T/A ELCOCK REISEN,16/07/2012, 640.00 
Environment & Leisure Services,Highways & Transport,ETAE,Transport-Related Expenditure,Transport Contractors,ARRIVA MIDLANDS NORTH LIMITED,09/07/2012," 4,144.00 "
Environment & Leisure Services,Highways & Transport,ETAE,Transport-Related Expenditure,Transport Contractors,AT BROWN (COACHES) LTD,13/07/2012, 983.10 
Environment & Leisure Services,Highways & Transport,ETAE,Transport-Related Expenditure,Transport Contractors,AT BROWN (COACHES) LTD,13/07/2012, 702.80 
Environment & Leisure Services,Highways & Transport,ETAE,Transport-Related Expenditure,Transport Contractors,AT BROWN (COACHES) LTD,13/07/2012, 681.00 
Environment & Leisure Services,Highways & Transport,ETAE,Transport-Related Expenditure,Transport Contractors,AT BROWN (COACHES) LTD,13/07/2012, 826.00 
Environment & Leisure Services,Highways & Transport,ETAE,Transport-Related Expenditure,Transport Contractors,M H ELCOCK & SON LTD T/A ELCOCK REISEN,16/07/2012," 4,240.00 "
Environment & Leisure Services,Highways & Transport,ETAE,Transport-Related Expenditure,Transport Contractors,M H ELCOCK & SON LTD T/A ELCOCK REISEN,10/07/2012," 3,360.00 "
Environment & Leisure Services,Highways & Transport,ETAE,Transport-Related Expenditure,Transport Contractors,M H ELCOCK & SON LTD T/A ELCOCK REISEN,10/07/2012," 3,280.00 "
Environment & Leisure Services,Highways & Transport,ETAE,Transport-Related Expenditure,Transport Contractors,ARRIVA MIDLANDS NORTH LIMITED,09/07/2012," 4,598.00 "
Environment & Leisure Services,Highways & Transport,ETAE,Transport-Related Expenditure,Transport Contractors,ARRIVA MIDLANDS NORTH LIMITED,09/07/2012," 5,368.00 "
Environment & Leisure Services,Highways & Transport,ETAE,Transport-Related Expenditure,Transport Contractors,M & B MINIBUSES LTD,10/07/2012," 2,355.00 "
Environment & Leisure Services,Highways & Transport,ETAF,Transport-Related Expenditure,Transport Contractors,M H ELCOCK & SON LTD T/A ELCOCK REISEN,13/07/2012," 3,186.96 "
Environment & Leisure Services,Highways & Transport,ETAF,Transport-Related Expenditure,Transport Contractors,ARRIVA MIDLANDS NORTH LIMITED,09/07/2012," 6,416.02 "
Environment & Leisure Services,Highways & Transport,ETAF,Transport-Related Expenditure,Transport Contractors,ARRIVA MIDLANDS NORTH LIMITED,09/07/2012," 3,763.42 "
Environment & Leisure Services,Highways & Transport,ETAF,Transport-Related Expenditure,Transport Contractors,ARRIVA MIDLANDS NORTH LIMITED,09/07/2012," 3,739.49 "
Environment & Leisure Services,Highways & Transport,ETAF,Transport-Related Expenditure,Transport Contractors,ARRIVA MIDLANDS NORTH LIMITED,09/07/2012," 10,000.00 "
Environment & Leisure Services,Highways & Transport,ETAF,Transport-Related Expenditure,Transport Contractors,M H ELCOCK & SON LTD T/A ELCOCK REISEN,10/07/2012," 4,029.52 "
Environment & Leisure Services,Highways & Transport,ETAG,Transport-Related Expenditure,Servicing & Repairs V&P,PAINT MASTER UK LTD,16/07/2012," 1,000.00 "
Environment & Leisure Services,Highways & Transport,ETAG,Transport-Related Expenditure,Servicing & Repairs V&P,Bodyshop Express,16/07/2012," 1,000.00 "
Environment & Leisure Services,Highways & Transport,ETAH,Transport-Related Expenditure,Outside Hire,DAYS RENTAL,26/07/2012,"-1,295.00 "
Environment & Leisure Services,Highways & Transport,ETAH,Transport-Related Expenditure,Outside Hire,SHELL UK LTD,19/07/2012," 1,012.09 "
Environment & Leisure Services,Highways & Transport,ETAL,Supplies & Services,Equipment - Hire,RMP Events,10/07/2012, 529.00 
Environment & Leisure Services,Highways & Transport,ETAL,Supplies & Services,Comp Software (Purch / Hire),JAMBUSTERS LTD,24/07/2012," 1,350.00 "
Environment & Leisure Services,Highways & Transport,ETAL,Transport-Related Expenditure,Contract Hire,ARRIVA MIDLANDS NORTH LIMITED,30/07/2012," 18,243.70 "
Environment & Leisure Services,Highways & Transport,ETAL,Transport-Related Expenditure,Contract Hire,ARRIVA MIDLANDS NORTH LIMITED,06/07/2012," 3,537.40 "
Environment & Leisure Services,Highways & Transport,WCAP,Capital Expenditure,Payments to Contractor,MCPHILLIPS (WELLINGTON) LTD,12/07/2012," 183,193.06 "
Environment & Leisure Services,Highways & Transport,WCAP,Capital Expenditure,Payments to Contractor,TRAFFIC & COMMERCIAL SIGNS LTD,25/07/2012," 2,222.21 "
Environment & Leisure Services,Highways & Transport,WEAR,Capital Expenditure,Payments to Contractor,MCPHILLIPS (WELLINGTON) LTD,31/07/2012," 15,001.05 "
Environment & Leisure Services,Highways & Transport,YCBA,Supplies & Services,Equipment - Purchase,LIVING STREETS SERVICES LTD,20/07/2012," 3,710.00 "
Environment & Leisure Services,Leisure Facilities & Services,GTAB,Premises-Related Expenditure,Non Domestic Rates,CYNGOR GWYNEDD COUNCIL,02/07/2012," 1,559.00 "
Environment & Leisure Services,Leisure Facilities & Services,GTAB,Supplies & Services,Equipment - Purchase,ADVENTURE KIT UK LIMITED,04/07/2012," 2,412.50 "
Environment & Leisure Services,Leisure Facilities & Services,GTAB,Supplies & Services,Equipment - Purchase,ADVENTURE KIT UK LIMITED,17/07/2012," 1,835.00 "
Environment & Leisure Services,Leisure Facilities & Services,GTAB,Supplies & Services,Equipment - Purchase,ADVENTURE KIT UK LIMITED,20/07/2012, 675.00 
Environment & Leisure Services,Leisure Facilities & Services,GTAB,Supplies & Services,Equipment - Purchase,Optimac (Pty) Ltd,09/07/2012," 2,030.63 "
Environment & Leisure Services,Leisure Facilities & Services,GTAB,Supplies & Services,Equipment - Purchase,PADDLEWORKS LTD,06/07/2012, 659.60 
Environment & Leisure Services,Leisure Facilities & Services,GTAB,Supplies & Services,Provisions,BSF TRADING AS 3663,11/07/2012, 694.95 
Environment & Leisure Services,Leisure Facilities & Services,GTAB,Supplies & Services,Provisions,BRAKES FOODSERVICE,11/07/2012, 703.94 
Environment & Leisure Services,Leisure Facilities & Services,GTAB,Supplies & Services,Provisions,WOODWARD FOODSERVICE LTD,11/07/2012, 843.92 
Environment & Leisure Services,Leisure Facilities & Services,GTAB,Supplies & Services,Provisions,BSF TRADING AS 3663,31/07/2012, 575.96 
Environment & Leisure Services,Leisure Facilities & Services,GTAB,Supplies & Services,Provisions,BRAKES FOODSERVICE,17/07/2012, 796.40 
Environment & Leisure Services,Leisure Facilities & Services,GTAB,Supplies & Services,Provisions,WOODWARD FOODSERVICE LTD,06/07/2012, 818.59 
Environment & Leisure Services,Leisure Facilities & Services,GTAB,Supplies & Services,Provisions,BSF TRADING AS 3663,06/07/2012, 854.62 
Environment & Leisure Services,Leisure Facilities & Services,GTAB,Supplies & Services,Provisions,BSF TRADING AS 3663,06/07/2012, 735.55 
Environment & Leisure Services,Leisure Facilities & Services,GTAB,Transport-Related Expenditure,Fuel,WD PUGH & SONS,17/07/2012, 953.33 
Environment & Leisure Services,Leisure Facilities & Services,LEAD,Employees,Superannuation Admin,SHROPSHIRE COUNCIL,23/07/2012," 1,200.00 "
Environment & Leisure Services,Leisure Facilities & Services,LEAD,Employees,Superannuation Admin,SHROPSHIRE COUNCIL,24/07/2012, 807.09 
Environment & Leisure Services,Leisure Facilities & Services,LEAD,Employees,Superannuation Admin,SHROPSHIRE COUNCIL,24/07/2012, 817.87 
Environment & Leisure Services,Leisure Facilities & Services,LEAD,Premises-Related Expenditure,Clean Mats & Toilet Requisites,PRINCIPAL HYGIENE SYSTEMS,23/07/2012, 518.80 
Environment & Leisure Services,Leisure Facilities & Services,LEAD,Premises-Related Expenditure,Swimming Pool Chemicals,BRENNTAG UK LIMITED,12/07/2012, 610.00 
Environment & Leisure Services,Leisure Facilities & Services,LEAD,Premises-Related Expenditure,Swimming Pool Chemicals,BRENNTAG UK LIMITED,23/07/2012, 666.00 
Environment & Leisure Services,Leisure Facilities & Services,LEAR,Employees,Superannuation Admin,SHROPSHIRE COUNCIL,26/07/2012, 817.87 
Environment & Leisure Services,Leisure Facilities & Services,LECA,Premises-Related Expenditure,Clean Mats & Toilet Requisites,PRINCIPAL HYGIENE SYSTEMS,05/07/2012, 631.05 
Environment & Leisure Services,Leisure Facilities & Services,LECA,Supplies & Services,Chemicals/Cleaning Products,BRENNTAG UK LIMITED,25/07/2012, 567.74 
Environment & Leisure Services,Leisure Facilities & Services,LECA,Supplies & Services,Chemicals/Cleaning Products,BRENNTAG UK LIMITED,03/07/2012, 528.14 
Environment & Leisure Services,Leisure Facilities & Services,LECH,Supplies & Services,Service Contracts,FIRST POINT TENNIS COACHING LTD,31/07/2012," 1,565.84 "
Environment & Leisure Services,Leisure Facilities & Services,LEDJ,Supplies & Services,Legal Expenses,BEVAN BRITTAN,10/07/2012," 4,268.00 "
Environment & Leisure Services,Leisure Facilities & Services,LEHG,Supplies & Services,Equipment - Hire,OAKLEYS LTD,12/07/2012, 525.75 
Environment & Leisure Services,Leisure Facilities & Services,LEHM,Premises-Related Expenditure,Grounds Maintenance - Other,EARTH-TEC LIMITED,12/07/2012, 683.01 
Environment & Leisure Services,Leisure Facilities & Services,LEHM,Transport-Related Expenditure,Servicing & Repairs V&P,OAKLEYS LTD,31/07/2012," 1,200.00 "
Environment & Leisure Services,Leisure Facilities & Services,LEHS,Supplies & Services,Items For Resale,PY Sports Limited,31/07/2012," 1,553.47 "
Environment & Leisure Services,Leisure Facilities & Services,LEIR,Premises-Related Expenditure,Electricity,West Mercia Energy (WME),02/07/2012," 10,978.36 "
Environment & Leisure Services,Leisure Facilities & Services,LEIR,Premises-Related Expenditure,Electricity,West Mercia Energy (WME),03/07/2012," 11,102.61 "
Environment & Leisure Services,Leisure Facilities & Services,LEIR,Supplies & Services,Equipment - Hire,NOICEONE LTD,31/07/2012," 4,000.00 "
Environment & Leisure Services,Leisure Facilities & Services,LEIR,Supplies & Services,Security Services,RMP SPECIALIST SERVICES LIMITED,31/07/2012, 663.00 
Family & Cohesion Services,Children Specialist Services,HDAF,Supplies & Services,Equipment - Purchase,KINDERKEY HEALTHCARE LTD,07/07/2012," 4,633.00 "
Family & Cohesion Services,Children Specialist Services,HDAF,Third Party Payments,Private Contractors,ACTION FOR CHILDREN LIMITED,26/07/2012," 135,000.00 "
Family & Cohesion Services,Children Specialist Services,HDAG,Supplies & Services,Aids & Appliances,G & S SMIRTHWAITE LTD,06/07/2012," 1,284.00 "
Family & Cohesion Services,Children Specialist Services,KNAA,Supplies & Services,Comp Hardware (Purch / Hire),RUGELEY HORIZON PRIORY,26/07/2012," 25,742.04 "
Family & Cohesion Services,Children Specialist Services,KNAA,Third Party Payments,Agency Services,CASTLECARE EDUCATION LTD,13/07/2012," 78,490.94 "
Family & Cohesion Services,Children Specialist Services,KNAA,Third Party Payments,Agency Services,CASTLECARE EDUCATION LTD,31/07/2012," 78,490.94 "
Family & Cohesion Services,Children Specialist Services,KNAA,Third Party Payments,Agency Services,MANCHESTER CITY COUNCIL,10/07/2012, 801.00 
Family & Cohesion Services,Children Specialist Services,KNAA,Third Party Payments,Agency Services,OVERLEY HALL SCHOOL,10/07/2012, 708.66 
Family & Cohesion Services,Children Specialist Services,KNAA,Third Party Payments,Agency Services,OVERLEY HALL SCHOOL,10/07/2012," 32,808.00 "
Family & Cohesion Services,Children Specialist Services,KNAJ,Supplies & Services,Aids & Appliances,PHONAK UK LTD,18/07/2012," 1,900.00 "
Family & Cohesion Services,Children Specialist Services,KNAJ,Supplies & Services,Aids & Appliances,PHONAK UK LTD,12/07/2012," 1,734.00 "
Family & Cohesion Services,Cohesion,GYAE,Supplies & Services,Other Grants (Expenses),YOUTH SUPPORT SERVICES LTD,13/07/2012," 22,847.25 "
Family & Cohesion Services,Cohesion,GYAL,Supplies & Services,Other Services,YOUTH SUPPORT SERVICES LTD,10/07/2012," 1,250.00 "
Family & Cohesion Services,Cohesion,JEAN,Supplies & Services,Mobile Phones,ORANGE PCS LTD,23/07/2012, 725.00 
Family & Cohesion Services,Cohesion,JEAN,Supplies & Services,Mobile Phones,ORANGE PCS LTD,23/07/2012, 580.00 
Family & Cohesion Services,Cohesion,JPAG,Supplies & Services,Mobile Phones,ORANGE PCS LTD,06/07/2012, 870.00 
Family & Cohesion Services,Early Intervention,GEAA,Third Party Payments,Voluntary Bodies,REDACTED PERSONAL INFORMATION,04/07/2012, 582.00 
Family & Cohesion Services,Early Intervention,GEAA,Third Party Payments,Voluntary Bodies,Fir Tree Day Nursery,11/07/2012, 582.00 
Family & Cohesion Services,Early Intervention,GEAC,Third Party Payments,Pre School Playgroups,REDACTED PERSONAL INFORMATION,04/07/2012, 743.04 
Family & Cohesion Services,Early Intervention,GEAC,Third Party Payments,Pre School Playgroups,REDACTED PERSONAL INFORMATION,04/07/2012, 606.60 
Family & Cohesion Services,Early Intervention,GEAC,Third Party Payments,Pre School Playgroups,REDACTED PERSONAL INFORMATION,04/07/2012, 621.00 
Family & Cohesion Services,Early Intervention,GEAC,Third Party Payments,Pre School Playgroups,REDACTED PERSONAL INFORMATION,04/07/2012, 619.20 
Family & Cohesion Services,Early Intervention,GEAC,Third Party Payments,Pre School Playgroups,REDACTED PERSONAL INFORMATION,04/07/2012, 557.28 
Family & Cohesion Services,Early Intervention,GEAC,Third Party Payments,Pre School Playgroups,CLUB 0-5 LTD ,11/07/2012," 3,132.00 "
Family & Cohesion Services,Early Intervention,GEAD,Employees,Training Expenses,EDGE HILL UNIVERSITY,24/07/2012," 1,170.00 "
Family & Cohesion Services,Early Intervention,GEAD,Supplies & Services,Other Services,HOME-START TELFORD & WREKIN,04/07/2012," 5,180.00 "
Family & Cohesion Services,Early Intervention,GEAD,Supplies & Services,Other Services,WOODSIDE FAMILY GROUP PROJECT,04/07/2012," 2,410.00 "
Family & Cohesion Services,Early Intervention,GEAL,Supplies & Services,Holidays & Outings,PARK HALL FARMS ENTERPRISES LTD,12/07/2012, 531.67 
Family & Cohesion Services,Early Intervention,GEAL,Third Party Payments,Daycare Expenditure,CHILDCARE SOS,12/07/2012," 1,587.30 "
Family & Cohesion Services,Early Intervention,GEAL,Third Party Payments,Daycare Expenditure,CHILDCARE SOS,12/07/2012, 841.05 
Family & Cohesion Services,Early Intervention,GEAM,Premises-Related Expenditure,Hire Of Rooms,Interserve (Facilities Management) Ltd,16/07/2012," 2,340.00 "
Family & Cohesion Services,Early Intervention,GEAR,Supplies & Services,Other Grants (Expenses),TEAGUES BRIDGE PRE-SCHOOL ,27/07/2012, 626.91 
Family & Cohesion Services,Early Intervention,GEAR,Supplies & Services,Other Grants (Expenses),ABC DAY NURSERY HOLLINSWOOD ,27/07/2012, 984.74 
Family & Cohesion Services,Early Intervention,JEAF,Supplies & Services,Other Services,TELFORD & WREKIN C V S,17/07/2012," 20,068.33 "
Family & Cohesion Services,"Integrated Planning, Placements & Commissioning",HHAD,Third Party Payments,Health Funded Services,SHROPSHIRE COMMUNITY HEALTH NHS TRUST,26/07/2012," 16,068.39 "
"Finance, Audit & Information Governance",Employment Services,FEAC,Employees,Recruitment Interview,CRIMINAL RECORDS BUREAU,10/07/2012," 9,574.00 "
"Finance, Audit & Information Governance",Finance Manager (Corporate Finance & Customer Services),FFAE,Supplies & Services,Miscellaneous Insurance,HEATH LAMBERT GROUP,16/07/2012," 53,528.58 "
"Finance, Audit & Information Governance",Finance Manager (Corporate Finance & Customer Services),FFAE,Supplies & Services,Miscellaneous Insurance,JC Applications Development LTD,25/07/2012," 3,379.00 "
"Finance, Audit & Information Governance",Finance Manager (Corporate Finance & Customer Services),MAAC,Employees,Agency Supply Costs,COMENSURA LTD,24/07/2012," 35,459.67 "
"Finance, Audit & Information Governance",Finance Manager (Corporate Finance & Customer Services),MAAC,Employees,Agency Supply Costs,COMENSURA LTD,10/07/2012," 40,283.92 "
"Finance, Audit & Information Governance",Finance Manager (Corporate Finance & Customer Services),MAAC,Employees,Agency Supply Costs,COMENSURA LTD,31/07/2012," 29,932.76 "
"Finance, Audit & Information Governance",Finance Manager (Corporate Finance & Customer Services),MAAC,Employees,Agency Supply Costs,COMENSURA LTD,12/07/2012," 27,875.39 "
"Finance, Audit & Information Governance",Finance Manager (Corporate Finance & Customer Services),MAAC,Employees,Agency Supply Costs,COMENSURA LTD,05/07/2012," 25,324.59 "
"Finance, Audit & Information Governance",Finance Manager (Schools & Care Services),FFAH,Supplies & Services,Subscriptions,CIPFA BUSINESS LTD,05/07/2012," 2,346.00 "
"Law, Democracy & Public Protection",Democratic Services,BDAB,Supplies & Services,Comp Hardware (Purch / Hire),SYNETRIX LTD,13/07/2012," 2,396.00 "
"Law, Democracy & Public Protection",Democratic Services,BDAB,Supplies & Services,Subscriptions,WEST MIDLANDS COUNCILS,10/07/2012," 20,483.00 "
"Law, Democracy & Public Protection",Democratic Services,BDAE,Supplies & Services,Printing - Other,IMPACT MAIL & PRINT LTD,12/07/2012," 11,338.84 "
"Law, Democracy & Public Protection",Democratic Services,BDAE,Supplies & Services,Printing - Other,LEXON,03/07/2012, 528.60 
"Law, Democracy & Public Protection",Democratic Services,BDAE,Supplies & Services,Printing - Other,LEXON,03/07/2012, 977.74 
"Law, Democracy & Public Protection",Democratic Services,BDAE,Supplies & Services,Printing - Other,LEXON,03/07/2012," 1,122.79 "
"Law, Democracy & Public Protection",Democratic Services,BDAE,Supplies & Services,Comp Hardware (Purch / Hire),SPECIALIST COMPUTERS CENTRES PLC,03/07/2012," 1,667.37 "
"Law, Democracy & Public Protection",Democratic Services,BDAE,Supplies & Services,Postages,ROYAL MAIL,12/07/2012," 1,410.32 "
"Law, Democracy & Public Protection","Environmental Health, Trading Standards & Licensing",DEAD,Supplies & Services,Other Services,SEVERN TRENT LABORATORIES,11/07/2012, 531.93 
"Law, Democracy & Public Protection","Environmental Health, Trading Standards & Licensing",DEAD,Supplies & Services,Other Services,SEVERN TRENT LABORATORIES,31/07/2012, 531.93 
"Law, Democracy & Public Protection",Governance,MAAF,Premises-Related Expenditure,Other,SHREWSBURY & TELFORD HOSPITAL NHS TRUST,26/07/2012," 18,384.00 "
"Law, Democracy & Public Protection",Legal Services,BLAB,Supplies & Services,Publications,LEXIS NEXIS,12/07/2012, 552.90 
Planning,Housing,DHAF,Premises-Related Expenditure,Bed & Breakfast Charges,OLD VICARAGE,24/07/2012," 2,560.00 "
Planning,Housing,DHAF,Premises-Related Expenditure,Bed & Breakfast Charges,OLD VICARAGE,24/07/2012," 2,590.00 "
Planning,Housing,DHAF,Premises-Related Expenditure,Bed & Breakfast Charges,THE FIRS GUEST HOUSE,13/07/2012," 3,756.00 "
Planning,Housing,DHAF,Premises-Related Expenditure,Bed & Breakfast Charges,WESTBROOK HOUSE,13/07/2012," 2,494.00 "
Planning,Housing,DHAF,Premises-Related Expenditure,Bed & Breakfast Charges,OLD VICARAGE,13/07/2012, 735.00 
Planning,Housing,DHAF,Premises-Related Expenditure,Bed & Breakfast Charges,OLD VICARAGE,13/07/2012," 1,565.00 "
Planning,Housing,DHAF,Premises-Related Expenditure,Bed & Breakfast Charges,THE GALLERY GUEST HOUSE,12/07/2012, 720.00 
Planning,Housing,DHAF,Premises-Related Expenditure,Bed & Breakfast Charges,THE ARLESTON INN HOTEL,12/07/2012, 500.00 
Planning,Housing,DHAF,Premises-Related Expenditure,Bed & Breakfast Charges,THE GALLERY GUEST HOUSE,05/07/2012, 840.00 
Planning,Housing,DHAF,Premises-Related Expenditure,Bed & Breakfast Charges,THE FIRS GUEST HOUSE,31/07/2012," 2,835.00 "
Planning,Housing,DHAF,Premises-Related Expenditure,Bed & Breakfast Charges,THE FIRS GUEST HOUSE,12/07/2012," 3,765.00 "
Planning,Housing,DHAF,Premises-Related Expenditure,Bed & Breakfast Charges,THE FIRS GUEST HOUSE,24/07/2012," 3,190.00 "
Planning,Housing,DHAF,Premises-Related Expenditure,Bed & Breakfast Charges,OLD VICARAGE,24/07/2012," 2,576.00 "
Planning,Housing,DHAF,Premises-Related Expenditure,Bed & Breakfast Charges,OLD VICARAGE,24/07/2012," 2,340.00 "
Planning,Housing,DHAF,Premises-Related Expenditure,Bed & Breakfast Charges,Charnwood Guesthouse,12/07/2012, 630.00 
Planning,Housing,DHAG,Premises-Related Expenditure,R&M -Buildings DLO Charge,AE PROPERTY MAINTENANCE,24/07/2012, 723.00 
Planning,Housing,DHAG,Premises-Related Expenditure,Other Energy Costs,CHURCHILL PL LIMITED,16/07/2012," 1,250.00 "
Planning,Housing,DHAG,Premises-Related Expenditure,Other Energy Costs,CHURCHILL PL LIMITED,16/07/2012," 1,050.00 "
Planning,Housing,DHAG,Premises-Related Expenditure,Leasehold Rents,REDACTED PERSONAL INFORMATION,13/07/2012, 506.70 
Planning,Housing,DHAG,Premises-Related Expenditure,Leasehold Rents,CHURCHILL PL LIMITED,16/07/2012," 1,102.36 "
Planning,Housing,DHAG,Premises-Related Expenditure,Leasehold Rents,CHURCHILL PL LIMITED,16/07/2012," 1,187.19 "
Planning,Housing,DHAH,Premises-Related Expenditure,Electricity,West Mercia Energy (WME),12/07/2012, 786.81 
Planning,Housing,DHAH,Premises-Related Expenditure,Electricity,West Mercia Energy (WME),12/07/2012," 1,362.78 "
Planning,Housing,DHAH,Premises-Related Expenditure,Gas,West Mercia Energy (WME),05/07/2012, 510.36 
Planning,Housing,DHAH,Premises-Related Expenditure,Gas,West Mercia Energy (WME),12/07/2012, 744.57 
Planning,Housing,DHAH,Premises-Related Expenditure,Gas,West Mercia Energy (WME),12/07/2012," 1,248.59 "
Planning,Housing,DHAJ,Premises-Related Expenditure,Gas,West Mercia Energy (WME),24/07/2012, 847.79 
Planning,Housing,DHAJ,Supplies & Services,Security Services,RMP SPECIALIST SERVICES LIMITED,18/07/2012," 2,730.00 "
Planning,Housing,DHAK,Premises-Related Expenditure,R&M -Buildings DLO Charge,AE PROPERTY MAINTENANCE,24/07/2012," 1,232.97 "
Planning,Housing,DHAP,Premises-Related Expenditure,Electricity,West Mercia Energy (WME),05/07/2012," 1,797.32 "
Planning,Housing,DHAP,Premises-Related Expenditure,Electricity,West Mercia Energy (WME),05/07/2012," 1,545.12 "
Planning,Housing,DHAP,Premises-Related Expenditure,Electricity,West Mercia Energy (WME),24/07/2012," 1,386.83 "
Planning,Housing,DHAP,Premises-Related Expenditure,Electricity,West Mercia Energy (WME),24/07/2012," 1,739.31 "
Planning,Housing,DHAP,Premises-Related Expenditure,Sewage Charges,SEVERN TRENT WATER LTD,24/07/2012, 742.52 
Planning,Housing,DHAS,Supplies & Services,Grants To Voluntary Organis,STAY TELFORD XC SUPPORTED HOUSE,31/07/2012," 1,750.00 "
Planning,Housing,WDAD,Capital Expenditure,Other Capital Expenditure,AE PROPERTY MAINTENANCE,24/07/2012, 795.00 
Planning,Housing,WDAD,Capital Expenditure,Other Capital Expenditure,AE PROPERTY MAINTENANCE,24/07/2012, 775.00 
Planning,Housing,WDAD,Capital Expenditure,Other Capital Expenditure,REDACTED PERSONAL INFORMATION,25/07/2012," 1,000.00 "
,,,,,,," 11,070,314.34 "
